Workbook

Sheet Input
A1: Input:
A3: Expense Month: | B3: 2018-08-01
A5: Case No. | B5: 2017-00321
A7: Property Tax Rates
A8: ARO Account: | B8: 0.0015 | E8: Jurisdictional E(m) Table
A9: Structures & Improvements | B9: 0.014274 | F9: Juris. E(m) | J9: Juris. E(m) vs. Revenue Collected
E10: Form 1.10 | F10: Ln 9 | G10: Ln 13 | H10: Ln 7 | I10: Ln 12 | K10: Recovered | L10: Recovery
E11: Expense | I11: Adj. Retail | J11: (Over)/Under | K11: in | L11: vs.
A12: Adj. Jurisdictional E(m) | E12: Month | F12: Retail | G12: PSM | H12: Total | I12: Recovery | J12: Recovery | K12: Rates | L12: Allowed | M12: Exp Month / Billing
A13: ="Authorized for "&TEXT(EDATE(ExpMonth,-2),"mmm-yy") -> Authorized for Jun-18 | E13: 2018-02-01 | F13: 0 | G13: =H13-F13 -> 0 | H13: 0
A14: Expense Month | B14: =VLOOKUP(EDATE(ExpMonth,-2),JurisEm,5, FALSE) -> 1413676 | E14: 2018-03-01 | F14: 0 | G14: 0 | H14: 0
E15: 2018-04-01 | F15: 683831 | G15: 23922 | H15: 707753 | I15: 683831 | J15: =I15-F15 -> 0 | M15: Apr / June
E16: 2018-05-01 | F16: 783036 | G16: =H16-F16 -> 23802 | H16: 806838 | I16: 783036 | J16: =I16-F16 -> 0 | M16: May / July
A17: Effective Date for Billing: | B17: 2018-09-28 | E17: 2018-06-01 | F17: 1461780 | G17: =H17-F17 -> 41954 | H17: 1503734 | I17: 1413676 | J17: -48104 | K17: =SUM(IF(BillPeriod=E17,ESM)) -> 731935 | L17: =IF(SUM($K$17:K17)+(SUM(J16:J17))=SUM($F$15:F15),"","ERROR") ->  | M17: June / August
A18: Date Submitted: | B18: 2018-09-18 | E18: 2018-07-01 | F18: 2237252 | G18: =H18-F18 -> 73481.82 | H18: 2310733.82 | I18: 2122573 | J18: -114679 | K18: =SUM(IF(BillPeriod=E18,ESM)) -> 897715 | L18: =IF(SUM($K$17:K18)+(SUM(J17:J18))=SUM($F$15:F16),"","ERROR") ->  | M18: July / September
E19: 2018-08-01 | F19: 2407393 | G19: 79069 | H19: 2486462 | I19: 2280451 | J19: -126942 | K19: =SUM(IF(BillPeriod=E19,ESM)) -> 1540618 | L19: =IF(SUM($K$17:K19)+(SUM(J18:J19))=SUM($F$15:F17),"","ERROR") ->  | M19: August / October
A20: Error Check: | E20: 2018-09-01 | G20: 0 | J20: 0 | K20: =SUM(IF(BillPeriod=E20,ESM)) -> 0 | L20: =IF(SUM($K$17:K20)+(SUM(J19:J20))=SUM($F$15:F18),"","ERROR") -> ERROR | M20: September / November
A21: To make sure that retail | B21: =IF(VLOOKUP(ExpMonth,SLSRSLtable,2,FALSE)=0,"ERROR","") ->  | E21: 2018-10-01 | G21: 0 | J21: 0 | K21: =SUM(IF(BillPeriod=E21,ESM)) -> 0 | L21: =IF(SUM($K$17:K21)+(SUM(J20:J21))=SUM($F$15:F19),"","ERROR") -> ERROR | M21: October / December
A22: and SLSRSL are entered | B22: =IF(ROUND(SUM(IF(RVCLS=0,IF(BillPeriod=ExpMonth,TotRev))),0)=0,"ERROR","") ->  | E22: 2018-11-01 | G22: 0 | J22: 0 | K22: =SUM(IF(BillPeriod=E22,ESM)) -> 0 | L22: =IF(SUM($K$17:K22)+(SUM(J21:J22))=SUM($F$15:F20),"","ERROR") -> ERROR | M22: November / January
A23: for the current expense month | E23: 2018-12-01 | G23: 0 | J23: 0 | K23: =SUM(IF(BillPeriod=E23,ESM)) -> 0 | L23: =IF(SUM($K$17:K23)+(SUM(J22:J23))=SUM($F$15:F21),"","ERROR") -> ERROR | M23: December / February
E24: 2019-01-01 | G24: 0 | J24: 0 | K24: =SUM(IF(BillPeriod=E24,ESM)) -> 0 | L24: =IF(SUM($K$17:K24)+(SUM(J23:J24))=SUM($F$15:F22),"","ERROR") -> ERROR | M24: January / March
E25: 2019-02-01 | G25: 0 | J25: 0 | K25: =SUM(IF(BillPeriod=E25,ESM)) -> 0 | L25: =IF(SUM($K$17:K25)+(SUM(J24:J25))=SUM($F$15:F23),"","ERROR") -> ERROR | M25: February / April
E26: 2019-03-01 | G26: 0 | J26: 0 | K26: =SUM(IF(BillPeriod=E26,ESM)) -> 0 | L26: =IF(SUM($K$17:K26)+(SUM(J25:J26))=SUM($F$15:F24),"","ERROR") -> ERROR | M26: March / May
A27: File: | E27: 2019-04-01 | G27: 0 | J27: 0 | K27: =SUM(IF(BillPeriod=E27,ESM)) -> 0 | L27: =IF(SUM($K$17:K27)+(SUM(J26:J27))=SUM($F$15:F25),"","ERROR") -> ERROR | M27: Apr / June
A28: Original & 2 copies | E28: 2019-05-01 | G28: 0 | J28: 0 | K28: =SUM(IF(BillPeriod=E28,ESM)) -> 0 | L28: =IF(SUM($K$17:K28)+(SUM(J27:J28))=SUM($F$15:F26),"","ERROR") -> ERROR | M28: May / July
E29: 2019-06-01 | G29: 0 | J29: 0 | K29: =SUM(IF(BillPeriod=E29,ESM)) -> 0 | L29: =IF(SUM($K$17:K29)+(SUM(J28:J29))=SUM($F$15:F27),"","ERROR") -> ERROR | M29: June / August
E30: 2019-07-01 | G30: 0 | J30: 0 | K30: =SUM(IF(BillPeriod=E30,ESM)) -> 0 | L30: =IF(SUM($K$17:K30)+(SUM(J29:J30))=SUM($F$15:F28),"","ERROR") -> ERROR | M30: July / September
E31: 2019-08-01 | G31: 0 | J31: 0 | K31: =SUM(IF(BillPeriod=E31,ESM)) -> 0 | L31: =IF(SUM($K$17:K31)+(SUM(J30:J31))=SUM($F$15:F29),"","ERROR") -> ERROR | M31: August / October
E32: 2019-09-01 | G32: 0 | J32: 0 | K32: =SUM(IF(BillPeriod=E32,ESM)) -> 0 | L32: =IF(SUM($K$17:K32)+(SUM(J31:J32))=SUM($F$15:F30),"","ERROR") -> ERROR | M32: September / November
E33: 2019-10-01 | G33: 0 | J33: 0 | K33: =SUM(IF(BillPeriod=E33,ESM)) -> 0 | L33: =IF(SUM($K$17:K33)+(SUM(J32:J33))=SUM($F$15:F31),"","ERROR") -> ERROR | M33: October / December
E34: 2019-11-01 | G34: 0 | J34: 0 | K34: =SUM(IF(BillPeriod=E34,ESM)) -> 0 | L34: =IF(SUM($K$17:K34)+(SUM(J33:J34))=SUM($F$15:F32),"","ERROR") -> ERROR | M34: November / January
E35: 2019-12-01 | G35: 0 | J35: 0 | K35: =SUM(IF(BillPeriod=E35,ESM)) -> 0 | L35: =IF(SUM($K$17:K35)+(SUM(J34:J35))=SUM($F$15:F33),"","ERROR") -> ERROR | M35: December / February
E36: 2020-01-01 | G36: 0 | J36: 0 | K36: =SUM(IF(BillPeriod=E36,ESM)) -> 0 | L36: =IF(SUM($K$17:K36)+(SUM(J35:J36))=SUM($F$15:F34),"","ERROR") -> ERROR | M36: January / March
E37: 2020-02-01 | G37: 0 | J37: 0 | K37: =SUM(IF(BillPeriod=E37,ESM)) -> 0 | L37: =IF(SUM($K$17:K37)+(SUM(J36:J37))=SUM($F$15:F35),"","ERROR") -> ERROR | M37: February / April
E38: 2020-03-01 | G38: 0 | J38: 0 | K38: =SUM(IF(BillPeriod=E38,ESM)) -> 0 | L38: =IF(SUM($K$17:K38)+(SUM(J37:J38))=SUM($F$15:F36),"","ERROR") -> ERROR | M38: March / May
E39: 2020-04-01 | G39: 0 | J39: 0 | K39: =SUM(IF(BillPeriod=E39,ESM)) -> 0 | L39: =IF(SUM($K$17:K39)+(SUM(J38:J39))=SUM($F$15:F37),"","ERROR") -> ERROR | M39: Apr / June
E40: 2020-05-01 | G40: 0 | J40: 0 | K40: =SUM(IF(BillPeriod=E40,ESM)) -> 0 | L40: =IF(SUM($K$17:K40)+(SUM(J39:J40))=SUM($F$15:F38),"","ERROR") -> ERROR | M40: May / July
E41: 2020-06-01 | G41: 0 | J41: 0 | K41: =SUM(IF(BillPeriod=E41,ESM)) -> 0 | L41: =IF(SUM($K$17:K41)+(SUM(J40:J41))=SUM($F$15:F39),"","ERROR") -> ERROR | M41: June / August
E42: 2020-07-01 | G42: 0 | J42: 0 | K42: =SUM(IF(BillPeriod=E42,ESM)) -> 0 | L42: =IF(SUM($K$17:K42)+(SUM(J41:J42))=SUM($F$15:F40),"","ERROR") -> ERROR | M42: July / September
E43: 2020-08-01 | G43: 0 | J43: 0 | K43: =SUM(IF(BillPeriod=E43,ESM)) -> 0 | L43: =IF(SUM($K$17:K43)+(SUM(J42:J43))=SUM($F$15:F41),"","ERROR") -> ERROR | M43: August / October
E44: 2020-09-01 | G44: 0 | J44: 0 | K44: =SUM(IF(BillPeriod=E44,ESM)) -> 0 | L44: =IF(SUM($K$17:K44)+(SUM(J43:J44))=SUM($F$15:F42),"","ERROR") -> ERROR | M44: September / November
E45: 2020-10-01 | G45: 0 | J45: 0 | K45: =SUM(IF(BillPeriod=E45,ESM)) -> 0 | L45: =IF(SUM($K$17:K45)+(SUM(J44:J45))=SUM($F$15:F43),"","ERROR") -> ERROR | M45: October / December
E46: 2020-11-01 | G46: 0 | J46: 0 | K46: =SUM(IF(BillPeriod=E46,ESM)) -> 0 | L46: =IF(SUM($K$17:K46)+(SUM(J45:J46))=SUM($F$15:F44),"","ERROR") -> ERROR | M46: November / January
E47: 2020-12-01 | G47: 0 | J47: 0 | K47: =SUM(IF(BillPeriod=E47,ESM)) -> 0 | L47: =IF(SUM($K$17:K47)+(SUM(J46:J47))=SUM($F$15:F45),"","ERROR") -> ERROR | M47: December / February
E48: 2021-01-01 | G48: 0 | J48: 0 | K48: =SUM(IF(BillPeriod=E48,ESM)) -> 0 | L48: =IF(SUM($K$17:K48)+(SUM(J47:J48))=SUM($F$15:F46),"","ERROR") -> ERROR | M48: January / March
E49: 2021-02-01 | G49: 0 | J49: 0 | K49: =SUM(IF(BillPeriod=E49,ESM)) -> 0 | L49: =IF(SUM($K$17:K49)+(SUM(J48:J49))=SUM($F$15:F47),"","ERROR") -> ERROR | M49: February / April
E50: 2021-03-01 | G50: 0 | J50: 0 | K50: =SUM(IF(BillPeriod=E50,ESM)) -> 0 | L50: =IF(SUM($K$17:K50)+(SUM(J49:J50))=SUM($F$15:F48),"","ERROR") -> ERROR | M50: March / May
E51: 2021-04-01 | G51: 0 | J51: 0 | K51: =SUM(IF(BillPeriod=E51,ESM)) -> 0 | L51: =IF(SUM($K$17:K51)+(SUM(J50:J51))=SUM($F$15:F49),"","ERROR") -> ERROR | M51: Apr / June
E52: 2021-05-01 | G52: 0 | J52: 0 | K52: =SUM(IF(BillPeriod=E52,ESM)) -> 0 | L52: =IF(SUM($K$17:K52)+(SUM(J51:J52))=SUM($F$15:F50),"","ERROR") -> ERROR | M52: May / July
E53: 2021-06-01 | G53: 0 | J53: 0 | K53: =SUM(IF(BillPeriod=E53,ESM)) -> 0 | L53: =IF(SUM($K$17:K53)+(SUM(J52:J53))=SUM($F$15:F51),"","ERROR") -> ERROR | M53: June / August
E54: 2021-07-01 | G54: 0 | J54: 0 | K54: =SUM(IF(BillPeriod=E54,ESM)) -> 0 | L54: =IF(SUM($K$17:K54)+(SUM(J53:J54))=SUM($F$15:F52),"","ERROR") -> ERROR | M54: July / September
E55: 2021-08-01 | G55: 0 | J55: 0 | K55: =SUM(IF(BillPeriod=E55,ESM)) -> 0 | L55: =IF(SUM($K$17:K55)+(SUM(J54:J55))=SUM($F$15:F53),"","ERROR") -> ERROR | M55: August / October
E56: 2021-09-01 | G56: 0 | J56: 0 | K56: =SUM(IF(BillPeriod=E56,ESM)) -> 0 | L56: =IF(SUM($K$17:K56)+(SUM(J55:J56))=SUM($F$15:F54),"","ERROR") -> ERROR | M56: September / November
E57: 2021-10-01 | G57: 0 | J57: 0 | K57: =SUM(IF(BillPeriod=E57,ESM)) -> 0 | L57: =IF(SUM($K$17:K57)+(SUM(J56:J57))=SUM($F$15:F55),"","ERROR") -> ERROR | M57: October / December
E58: 2021-11-01 | G58: 0 | J58: 0 | K58: =SUM(IF(BillPeriod=E58,ESM)) -> 0 | L58: =IF(SUM($K$17:K58)+(SUM(J57:J58))=SUM($F$15:F56),"","ERROR") -> ERROR | M58: November / January
E59: 2021-12-01 | G59: 0 | J59: 0 | K59: =SUM(IF(BillPeriod=E59,ESM)) -> 0 | L59: =IF(SUM($K$17:K59)+(SUM(J58:J59))=SUM($F$15:F57),"","ERROR") -> ERROR | M59: December / February
E60: 2022-01-01 | G60: 0 | J60: 0 | K60: =SUM(IF(BillPeriod=E60,ESM)) -> 0 | L60: =IF(SUM($K$17:K60)+(SUM(J59:J60))=SUM($F$15:F58),"","ERROR") -> ERROR | M60: January / March
E61: 2022-02-01 | G61: 0 | J61: 0 | K61: =SUM(IF(BillPeriod=E61,ESM)) -> 0 | L61: =IF(SUM($K$17:K61)+(SUM(J60:J61))=SUM($F$15:F59),"","ERROR") -> ERROR | M61: February / April
E62: 2022-03-01 | G62: 0 | J62: 0 | K62: =SUM(IF(BillPeriod=E62,ESM)) -> 0 | L62: =IF(SUM($K$17:K62)+(SUM(J61:J62))=SUM($F$15:F60),"","ERROR") -> ERROR | M62: March / May
E63: 2022-04-01 | G63: 0 | J63: 0 | K63: =SUM(IF(BillPeriod=E63,ESM)) -> 0 | L63: =IF(SUM($K$17:K63)+(SUM(J62:J63))=SUM($F$15:F61),"","ERROR") -> ERROR | M63: Apr / June
E64: 2022-05-01 | G64: 0 | J64: 0 | K64: =SUM(IF(BillPeriod=E64,ESM)) -> 0 | L64: =IF(SUM($K$17:K64)+(SUM(J63:J64))=SUM($F$15:F62),"","ERROR") -> ERROR | M64: May / July
E65: 2022-06-01 | G65: 0 | J65: 0 | K65: =SUM(IF(BillPeriod=E65,ESM)) -> 0 | L65: =IF(SUM($K$17:K65)+(SUM(J64:J65))=SUM($F$15:F63),"","ERROR") -> ERROR | M65: June / August
E66: 2022-07-01 | G66: 0 | J66: 0 | K66: =SUM(IF(BillPeriod=E66,ESM)) -> 0 | L66: =IF(SUM($K$17:K66)+(SUM(J65:J66))=SUM($F$15:F64),"","ERROR") -> ERROR | M66: July / September
E67: 2022-08-01 | G67: 0 | J67: 0 | K67: =SUM(IF(BillPeriod=E67,ESM)) -> 0 | L67: =IF(SUM($K$17:K67)+(SUM(J66:J67))=SUM($F$15:F65),"","ERROR") -> ERROR | M67: August / October
E68: 2022-09-01 | G68: 0 | J68: 0 | K68: =SUM(IF(BillPeriod=E68,ESM)) -> 0 | L68: =IF(SUM($K$17:K68)+(SUM(J67:J68))=SUM($F$15:F66),"","ERROR") -> ERROR | M68: September / November
E69: 2022-10-01 | G69: 0 | J69: 0 | K69: =SUM(IF(BillPeriod=E69,ESM)) -> 0 | L69: =IF(SUM($K$17:K69)+(SUM(J68:J69))=SUM($F$15:F67),"","ERROR") -> ERROR | M69: October / December
E70: 2022-11-01 | G70: 0 | J70: 0 | K70: =SUM(IF(BillPeriod=E70,ESM)) -> 0 | L70: =IF(SUM($K$17:K70)+(SUM(J69:J70))=SUM($F$15:F68),"","ERROR") -> ERROR | M70: November / January
E71: 2022-12-01 | G71: 0 | J71: 0 | K71: =SUM(IF(BillPeriod=E71,ESM)) -> 0 | L71: =IF(SUM($K$17:K71)+(SUM(J70:J71))=SUM($F$15:F69),"","ERROR") -> ERROR | M71: December / February
E72: 2023-01-01 | G72: 0 | J72: 0 | K72: =SUM(IF(BillPeriod=E72,ESM)) -> 0 | L72: =IF(SUM($K$17:K72)+(SUM(J71:J72))=SUM($F$15:F70),"","ERROR") -> ERROR | M72: January / March
E73: 2023-02-01 | G73: 0 | J73: 0 | K73: =SUM(IF(BillPeriod=E73,ESM)) -> 0 | L73: =IF(SUM($K$17:K73)+(SUM(J72:J73))=SUM($F$15:F71),"","ERROR") -> ERROR | M73: February / April
E74: 2023-03-01 | G74: 0 | J74: 0 | K74: =SUM(IF(BillPeriod=E74,ESM)) -> 0 | L74: =IF(SUM($K$17:K74)+(SUM(J73:J74))=SUM($F$15:F72),"","ERROR") -> ERROR | M74: March / May
E75: 2023-04-01 | G75: 0 | J75: 0 | K75: =SUM(IF(BillPeriod=E75,ESM)) -> 0 | L75: =IF(SUM($K$17:K75)+(SUM(J74:J75))=SUM($F$15:F73),"","ERROR") -> ERROR | M75: Apr / June
E76: 2023-05-01 | G76: 0 | J76: 0 | K76: =SUM(IF(BillPeriod=E76,ESM)) -> 0 | L76: =IF(SUM($K$17:K76)+(SUM(J75:J76))=SUM($F$15:F74),"","ERROR") -> ERROR | M76: May / July
E77: 2023-06-01 | G77: 0 | J77: 0 | K77: =SUM(IF(BillPeriod=E77,ESM)) -> 0 | L77: =IF(SUM($K$17:K77)+(SUM(J76:J77))=SUM($F$15:F75),"","ERROR") -> ERROR | M77: June / August
E78: 2023-07-01 | G78: 0 | J78: 0 | K78: =SUM(IF(BillPeriod=E78,ESM)) -> 0 | L78: =IF(SUM($K$17:K78)+(SUM(J77:J78))=SUM($F$15:F76),"","ERROR") -> ERROR | M78: July / September
E79: 2023-08-01 | G79: 0 | J79: 0 | K79: =SUM(IF(BillPeriod=E79,ESM)) -> 0 | L79: =IF(SUM($K$17:K79)+(SUM(J78:J79))=SUM($F$15:F77),"","ERROR") -> ERROR | M79: August / October
E80: 2023-09-01 | G80: 0 | J80: =I80-F80 -> 0 | K80: =SUM(IF(BillPeriod=E80,ESM)) -> 0 | L80: =IF(SUM($K$17:K80)+(SUM(J79:J80))=SUM($F$15:F78),"","ERROR") -> ERROR | M80: September / November
E81: 2023-10-01 | G81: 0 | J81: 0 | K81: =SUM(IF(BillPeriod=E81,ESM)) -> 0 | L81: =IF(SUM($K$17:K81)+(SUM(J80:J81))=SUM($F$15:F79),"","ERROR") -> ERROR | M81: October / December
E82: 2023-11-01 | G82: =H82-F82 -> 0 | J82: 0 | K82: =SUM(IF(BillPeriod=E82,ESM)) -> 0 | L82: =IF(SUM($K$17:K82)+(SUM(J81:J82))=SUM($F$15:F80),"","ERROR") -> ERROR | M82: November / January
E83: 2023-12-01 | G83: 0 | J83: 0 | K83: =SUM(IF(BillPeriod=E83,ESM)) -> 0 | L83: =IF(SUM($K$17:K83)+(SUM(J82:J83))=SUM($F$15:F81),"","ERROR") -> ERROR | M83: December / February
E84: 2024-01-01 | G84: 0 | J84: 0 | K84: =SUM(IF(BillPeriod=E84,ESM)) -> 0 | L84: =IF(SUM($K$17:K84)+(SUM(J83:J84))=SUM($F$15:F82),"","ERROR") -> ERROR | M84: January / March
E85: 2024-02-01 | G85: 0 | J85: 0 | K85: =SUM(IF(BillPeriod=E85,ESM)) -> 0 | L85: =IF(SUM($K$17:K85)+(SUM(J84:J85))=SUM($F$15:F83),"","ERROR") -> ERROR | M85: February / April
E86: 2024-03-01 | G86: 0 | J86: 0 | K86: =SUM(IF(BillPeriod=E86,ESM)) -> 0 | L86: =IF(SUM($K$17:K86)+(SUM(J85:J86))=SUM($F$15:F84),"","ERROR") -> ERROR | M86: March / May
E87: 2024-04-01 | G87: 0 | J87: 0 | K87: =SUM(IF(BillPeriod=E87,ESM)) -> 0 | L87: =IF(SUM($K$17:K87)+(SUM(J86:J87))=SUM($F$15:F85),"","ERROR") -> ERROR | M87: Apr / June
E88: 2024-05-01 | G88: 0 | J88: 0 | K88: =SUM(IF(BillPeriod=E88,ESM)) -> 0 | L88: =IF(SUM($K$17:K88)+(SUM(J87:J88))=SUM($F$15:F86),"","ERROR") -> ERROR | M88: May / July
E89: 2024-06-01 | G89: 0 | J89: 0 | K89: =SUM(IF(BillPeriod=E89,ESM)) -> 0 | L89: =IF(SUM($K$17:K89)+(SUM(J88:J89))=SUM($F$15:F87),"","ERROR") -> ERROR | M89: June / August
E90: 2024-07-01 | G90: 0 | J90: 0 | K90: =SUM(IF(BillPeriod=E90,ESM)) -> 0 | L90: =IF(SUM($K$17:K90)+(SUM(J89:J90))=SUM($F$15:F88),"","ERROR") -> ERROR | M90: July / September
E91: 2024-08-01 | G91: 0 | J91: 0 | K91: =SUM(IF(BillPeriod=E91,ESM)) -> 0 | L91: =IF(SUM($K$17:K91)+(SUM(J90:J91))=SUM($F$15:F89),"","ERROR") -> ERROR | M91: August / October
E92: 2024-09-01 | G92: 0 | J92: 0 | K92: =SUM(IF(BillPeriod=E92,ESM)) -> 0 | L92: =IF(SUM($K$17:K92)+(SUM(J91:J92))=SUM($F$15:F90),"","ERROR") -> ERROR | M92: September / November
E93: 2024-10-01 | G93: 0 | J93: 0 | K93: =SUM(IF(BillPeriod=E93,ESM)) -> 0 | L93: =IF(SUM($K$17:K93)+(SUM(J92:J93))=SUM($F$15:F91),"","ERROR") -> ERROR | M93: October / December
E94: 2024-11-01 | G94: 0 | J94: 0 | K94: =SUM(IF(BillPeriod=E94,ESM)) -> 0 | L94: =IF(SUM($K$17:K94)+(SUM(J93:J94))=SUM($F$15:F92),"","ERROR") -> ERROR | M94: November / January
E95: 2024-12-01 | G95: 0 | J95: 0 | K95: =SUM(IF(BillPeriod=E95,ESM)) -> 0 | L95: =IF(SUM($K$17:K95)+(SUM(J94:J95))=SUM($F$15:F93),"","ERROR") -> ERROR | M95: December / February
E96: 2025-01-01 | G96: 0 | J96: 0 | K96: =SUM(IF(BillPeriod=E96,ESM)) -> 0 | L96: =IF(SUM($K$17:K96)+(SUM(J95:J96))=SUM($F$15:F94),"","ERROR") -> ERROR | M96: January / March
E97: 2025-02-01 | G97: 0 | J97: 0 | K97: =SUM(IF(BillPeriod=E97,ESM)) -> 0 | L97: =IF(SUM($K$17:K97)+(SUM(J96:J97))=SUM($F$15:F95),"","ERROR") -> ERROR | M97: February / April
E98: 2025-03-01 | G98: 0 | J98: 0 | K98: =SUM(IF(BillPeriod=E98,ESM)) -> 0 | L98: =IF(SUM($K$17:K98)+(SUM(J97:J98))=SUM($F$15:F96),"","ERROR") -> ERROR | M98: March / May
E99: 2025-04-01 | G99: 0 | J99: 0 | K99: =SUM(IF(BillPeriod=E99,ESM)) -> 0 | L99: =IF(SUM($K$17:K99)+(SUM(J98:J99))=SUM($F$15:F97),"","ERROR") -> ERROR | M99: Apr / June
E100: 2025-05-01 | G100: 0 | J100: 0 | K100: =SUM(IF(BillPeriod=E100,ESM)) -> 0 | L100: =IF(SUM($K$17:K100)+(SUM(J99:J100))=SUM($F$15:F98),"","ERROR") -> ERROR | M100: May / July
E101: 2025-06-01 | G101: 0 | J101: 0 | K101: =SUM(IF(BillPeriod=E101,ESM)) -> 0 | L101: =IF(SUM($K$17:K101)+(SUM(J100:J101))=SUM($F$15:F99),"","ERROR") -> ERROR | M101: June / August
E102: 2025-07-01 | G102: 0 | J102: 0 | K102: =SUM(IF(BillPeriod=E102,ESM)) -> 0 | L102: =IF(SUM($K$17:K102)+(SUM(J101:J102))=SUM($F$15:F100),"","ERROR") -> ERROR | M102: July / September
E103: 2025-08-01 | G103: 0 | J103: 0 | K103: =SUM(IF(BillPeriod=E103,ESM)) -> 0 | L103: =IF(SUM($K$17:K103)+(SUM(J102:J103))=SUM($F$15:F101),"","ERROR") -> ERROR | M103: August / October
E104: 2025-09-01 | G104: 0 | J104: 0 | K104: =SUM(IF(BillPeriod=E104,ESM)) -> 0 | L104: =IF(SUM($K$17:K104)+(SUM(J103:J104))=SUM($F$15:F102),"","ERROR") -> ERROR | M104: September / November
E105: 2025-10-01 | G105: 0 | J105: 0 | K105: =SUM(IF(BillPeriod=E105,ESM)) -> 0 | L105: =IF(SUM($K$17:K105)+(SUM(J104:J105))=SUM($F$15:F103),"","ERROR") -> ERROR | M105: October / December
E106: 2025-11-01 | G106: 0 | J106: 0 | K106: =SUM(IF(BillPeriod=E106,ESM)) -> 0 | L106: =IF(SUM($K$17:K106)+(SUM(J105:J106))=SUM($F$15:F104),"","ERROR") -> ERROR | M106: November / January
E107: 2025-12-01 | G107: 0 | J107: 0 | K107: =SUM(IF(BillPeriod=E107,ESM)) -> 0 | L107: =IF(SUM($K$17:K107)+(SUM(J106:J107))=SUM($F$15:F105),"","ERROR") -> ERROR | M107: December / February
E108: 2026-01-01 | G108: 0 | J108: 0 | K108: =SUM(IF(BillPeriod=E108,ESM)) -> 0 | L108: =IF(SUM($K$17:K108)+(SUM(J107:J108))=SUM($F$15:F106),"","ERROR") -> ERROR | M108: January / March
E109: 2026-02-01 | G109: 0 | J109: 0 | K109: =SUM(IF(BillPeriod=E109,ESM)) -> 0 | L109: =IF(SUM($K$17:K109)+(SUM(J108:J109))=SUM($F$15:F107),"","ERROR") -> ERROR | M109: February / April
E110: 2026-03-01 | G110: 0 | J110: 0 | K110: =SUM(IF(BillPeriod=E110,ESM)) -> 0 | L110: =IF(SUM($K$17:K110)+(SUM(J109:J110))=SUM($F$15:F108),"","ERROR") -> ERROR | M110: March / May
E111: 2026-04-01 | G111: 0 | J111: 0 | K111: =SUM(IF(BillPeriod=E111,ESM)) -> 0 | L111: =IF(SUM($K$17:K111)+(SUM(J110:J111))=SUM($F$15:F109),"","ERROR") -> ERROR | M111: Apr / June
E112: 2026-05-01 | G112: 0 | J112: 0 | K112: =SUM(IF(BillPeriod=E112,ESM)) -> 0 | L112: =IF(SUM($K$17:K112)+(SUM(J111:J112))=SUM($F$15:F110),"","ERROR") -> ERROR | M112: May / July
E113: 2026-06-01 | G113: 0 | J113: 0 | K113: =SUM(IF(BillPeriod=E113,ESM)) -> 0 | L113: =IF(SUM($K$17:K113)+(SUM(J112:J113))=SUM($F$15:F111),"","ERROR") -> ERROR | M113: June / August
E114: 2026-07-01 | G114: 0 | J114: 0 | K114: =SUM(IF(BillPeriod=E114,ESM)) -> 0 | L114: =IF(SUM($K$17:K114)+(SUM(J113:J114))=SUM($F$15:F112),"","ERROR") -> ERROR | M114: July / September
E115: 2026-08-01 | G115: 0 | J115: 0 | K115: =SUM(IF(BillPeriod=E115,ESM)) -> 0 | L115: =IF(SUM($K$17:K115)+(SUM(J114:J115))=SUM($F$15:F113),"","ERROR") -> ERROR | M115: August / October
E116: 2026-09-01 | G116: 0 | J116: 0 | K116: =SUM(IF(BillPeriod=E116,ESM)) -> 0 | L116: =IF(SUM($K$17:K116)+(SUM(J115:J116))=SUM($F$15:F114),"","ERROR") -> ERROR | M116: September / November
E117: 2026-10-01 | G117: 0 | J117: 0 | K117: =SUM(IF(BillPeriod=E117,ESM)) -> 0 | L117: =IF(SUM($K$17:K117)+(SUM(J116:J117))=SUM($F$15:F115),"","ERROR") -> ERROR | M117: October / December
E118: 2026-11-01 | G118: 0 | J118: 0 | K118: =SUM(IF(BillPeriod=E118,ESM)) -> 0 | L118: =IF(SUM($K$17:K118)+(SUM(J117:J118))=SUM($F$15:F116),"","ERROR") -> ERROR | M118: November / January
E119: 2026-12-01 | G119: 0 | J119: 0 | K119: =SUM(IF(BillPeriod=E119,ESM)) -> 0 | L119: =IF(SUM($K$17:K119)+(SUM(J118:J119))=SUM($F$15:F117),"","ERROR") -> ERROR | M119: December / February
E120: 2027-01-01 | G120: 0 | J120: 0 | K120: =SUM(IF(BillPeriod=E120,ESM)) -> 0 | L120: =IF(SUM($K$17:K120)+(SUM(J119:J120))=SUM($F$15:F118),"","ERROR") -> ERROR | M120: January / March
E121: 2027-02-01 | G121: 0 | J121: 0 | K121: =SUM(IF(BillPeriod=E121,ESM)) -> 0 | L121: =IF(SUM($K$17:K121)+(SUM(J120:J121))=SUM($F$15:F119),"","ERROR") -> ERROR | M121: February / April
E122: 2027-03-01 | G122: 0 | J122: 0 | K122: =SUM(IF(BillPeriod=E122,ESM)) -> 0 | L122: =IF(SUM($K$17:K122)+(SUM(J121:J122))=SUM($F$15:F120),"","ERROR") -> ERROR | M122: March / May
E123: 2027-04-01 | G123: 0 | J123: 0 | K123: =SUM(IF(BillPeriod=E123,ESM)) -> 0 | L123: =IF(SUM($K$17:K123)+(SUM(J122:J123))=SUM($F$15:F121),"","ERROR") -> ERROR | M123: Apr / June
E124: 2027-05-01 | G124: 0 | J124: 0 | K124: =SUM(IF(BillPeriod=E124,ESM)) -> 0 | L124: =IF(SUM($K$17:K124)+(SUM(J123:J124))=SUM($F$15:F122),"","ERROR") -> ERROR | M124: May / July
E125: 2027-06-01 | G125: 0 | J125: 0 | K125: =SUM(IF(BillPeriod=E125,ESM)) -> 0 | L125: =IF(SUM($K$17:K125)+(SUM(J124:J125))=SUM($F$15:F123),"","ERROR") -> ERROR | M125: June / August
E126: 2027-07-01 | G126: 0 | J126: 0 | K126: =SUM(IF(BillPeriod=E126,ESM)) -> 0 | L126: =IF(SUM($K$17:K126)+(SUM(J125:J126))=SUM($F$15:F124),"","ERROR") -> ERROR | M126: July / September
E127: 2027-08-01 | G127: 0 | J127: 0 | K127: =SUM(IF(BillPeriod=E127,ESM)) -> 0 | L127: =IF(SUM($K$17:K127)+(SUM(J126:J127))=SUM($F$15:F125),"","ERROR") -> ERROR | M127: August / October
E128: 2027-09-01 | G128: 0 | J128: 0 | K128: =SUM(IF(BillPeriod=E128,ESM)) -> 0 | L128: =IF(SUM($K$17:K128)+(SUM(J127:J128))=SUM($F$15:F126),"","ERROR") -> ERROR | M128: September / November
E129: 2027-10-01 | G129: 0 | J129: 0 | K129: =SUM(IF(BillPeriod=E129,ESM)) -> 0 | L129: =IF(SUM($K$17:K129)+(SUM(J128:J129))=SUM($F$15:F127),"","ERROR") -> ERROR | M129: October / December
E130: 2027-11-01 | G130: 0 | J130: 0 | K130: =SUM(IF(BillPeriod=E130,ESM)) -> 0 | L130: =IF(SUM($K$17:K130)+(SUM(J129:J130))=SUM($F$15:F128),"","ERROR") -> ERROR | M130: November / January
E131: 2027-12-01 | G131: 0 | J131: 0 | K131: =SUM(IF(BillPeriod=E131,ESM)) -> 0 | L131: =IF(SUM($K$17:K131)+(SUM(J130:J131))=SUM($F$15:F129),"","ERROR") -> ERROR | M131: December / February
E132: 2028-01-01 | G132: 0 | J132: 0 | K132: =SUM(IF(BillPeriod=E132,ESM)) -> 0 | L132: =IF(SUM($K$17:K132)+(SUM(J131:J132))=SUM($F$15:F130),"","ERROR") -> ERROR | M132: January / March
E133: 2028-02-01 | G133: 0 | J133: 0 | K133: =SUM(IF(BillPeriod=E133,ESM)) -> 0 | L133: =IF(SUM($K$17:K133)+(SUM(J132:J133))=SUM($F$15:F131),"","ERROR") -> ERROR | M133: February / April
E134: 2028-03-01 | G134: 0 | J134: 0 | K134: =SUM(IF(BillPeriod=E134,ESM)) -> 0 | L134: =IF(SUM($K$17:K134)+(SUM(J133:J134))=SUM($F$15:F132),"","ERROR") -> ERROR | M134: March / May
E135: 2028-04-01 | G135: 0 | J135: 0 | K135: =SUM(IF(BillPeriod=E135,ESM)) -> 0 | L135: =IF(SUM($K$17:K135)+(SUM(J134:J135))=SUM($F$15:F133),"","ERROR") -> ERROR | M135: Apr / June
E136: 2028-05-01 | G136: 0 | J136: 0 | K136: =SUM(IF(BillPeriod=E136,ESM)) -> 0 | L136: =IF(SUM($K$17:K136)+(SUM(J135:J136))=SUM($F$15:F134),"","ERROR") -> ERROR | M136: May / July

Sheet FORM 1.00
E1: ES FORM 1.00
A3: DUKE ENERGY KENTUCKY, INC.
A4: ENVIRONMENTAL SURCHARGE REPORT
A6: Summary of Jurisdictional E(m), Jurisdictional R(m) and Environmental Surcharge Billing Factors
A8: ="For the Expense Month of "&TEXT(ExpMonth,"mmmm yyyy") -> For the Expense Month of August 2018
A13: Residential (Total Revenue)
A15: Jurisdictional E(m) | C15: ES Form 1.10, Line 15 | D15: = | E15: ='FORM 1.10'!H47 -> 937949
A17: Jurisdictional R(m) | C17: ES Form 1.10, Line 16 | D17: = | E17: ='FORM 1.10'!H50 -> 11146170
A19: Environmental Surcharge Billing Factor | C19: ES Form 1.10, Line 17 | D19: = | E19: ='FORM 1.10'!H53 -> 0.0841
A22: Non-Residential (Net Revenue)
A24: Jurisdictional E(m) | C24: ES Form 1.10, Line 15 | D24: = | E24: ='FORM 1.10'!I47 -> 1342502
A26: Jurisdictional R(m) | C26: ES Form 1.10, Line 16 | E26: ='FORM 1.10'!I51 -> 10162293
A28: Environmental Surcharge Billing Factor | C28: ES Form 1.10, Line 17 | D28: = | E28: ='FORM 1.10'!I53 -> 0.1321
A33: Effective Date for Billing: | C33: =Input!B17 -> 2018-09-28
A36: Submitted by: | C36: Theodore H. Czupik Jr.
A39: Title: | C39: Rates & Regulatory Strategy Manager
A42: Date Submitted: | C42: =Input!B18 -> 2018-09-18

Sheet FORM 1.10
I1: ES FORM 1.10
B3: =Company -> DUKE ENERGY KENTUCKY, INC.
B4: =Title -> ENVIRONMENTAL SURCHARGE REPORT
B6: Calculation of Current Month Environmental Surcharge Factors
B8: ="For the Expense Month of "&TEXT(ExpMonth,"mmmm yyyy") -> For the Expense Month of August 2018
B11: Line | H11: Environmental
B12: No. | D12: E(m) = RORB + OE - EAS + Prior Period Adjustment + (Over)/Under Recovery | F12: Source | H12: Compliance Plans
B14: =MAX(B$13:B13)+1 -> 1 | D14: Environmental Compliance Rate Base (RB) | F14: ES Form 2.00 | H14: ='FORM 2.00'!F28 -> 32024247
B16: =MAX(B$13:B15)+1 -> 2 | D16: RB ÷ 12 months | F16: (1) ÷ 12 | H16: =ROUND(H14/12,0) -> 2668687
B18: =MAX(B$13:B17)+1 -> 3 | D18: Pretax Rate of Return (ROR) | F18: ES Form 1.20 | H18: ='FORM 1.20'!G16 -> 0.08446
B20: =MAX(B$13:B19)+1 -> 4 | D20: Return on the Environmental Compliance Rate Base (RORB) | F20: (2) x (3) | H20: =ROUND(H16*H18,0) -> 225397
B22: =MAX(B$13:B21)+1 -> 5 | D22: Environmental Operating Expenses (OE) | F22: ES Form 2.00 | G22: + | H22: ='FORM 2.00'!F38 -> 2261065
B24: =MAX(B$13:B23)+1 -> 6 | D24: Less: Proceeds from Emission Allowance Sales (EAS) | F24: ES Form 2.00 | G24: - | H24: ='FORM 2.00'!F45 -> 0
B26: =MAX(B$13:B25)+1 -> 7 | D26: Sub-Total E(m) | F26: (4) + (5) - (6) | H26: =H20+H22-H24 -> 2486462
B28: =MAX(B$13:B27)+1 -> 8 | D28: Jurisdictional Allocation Ratio for Expense Month | F28: Line 18 | H28: =I58 -> 0.9682
B30: =MAX(B$13:B29)+1 -> 9 | D30: Jurisdictional E(m) | F30: (7) x (8) | H30: =ROUND(H26*H28,0) -> 2407393
B32: =MAX(B$13:B31)+1 -> 10 | D32: Prior Period Adjustment (if necessary) | F32: (A) | G32: + | H32: 0
B34: =MAX(B$13:B33)+1 -> 11 | D34: Adjustment for (Over)/Under Recovery | F34: ES Form 2.00 | G34: + | H34: ='FORM 2.00'!F51 -> -126942
B36: =MAX(B$13:B35)+1 -> 12 | D36: Total Adjusted Jurisdictional E(m) | F36: (9) + (10) + (11) | H36: =H30+H32+H34 -> 2280451
B38: 13 | D38: Jurisdictional E(m) to be Recovered in Rider PSM | F38: (7) - (9) | H38: =H26-H30 -> 79069
B40: Calculation of Environmental Surcharge Billing Factors
H42: Residential | I42: Non-Residential
H43: (Total Revenue) | I43: (Net Revenue)
B45: =MAX(B$13:B41)+1 -> 14 | D45: Revenues as a Percentage of 12 Month Average Total Revenues | F45: ES Form 3.00 | H45: ='FORM 3.00'!G36 -> 0.4113 | I45: ='FORM 3.00'!G64 -> 0.5887
B47: =MAX(B$13:B46)+1 -> 15 | D47: Adjusted Jurisdictional E(m) - Allocated | F47: (12) x (14) | H47: =ROUND(H36*H45,0) -> 937949 | I47: =H36-H47 -> 1342502
B49: =MAX(B$13:B48)+1 -> 16 | D49: R(m)
D50: Residential R(m) = Average Total Revenue (Total Revenue excluding ESM Revenue) | F50: ES Form 3.00 | H50: ='FORM 3.00'!G32 -> 11146170
D51: Non-Residential R(m) = Average Net Revenue (Total Revenue excluding ESM Revenue, Base Fuel and FAC Revenue) | F51: ES Form 3.00 | I51: ='FORM 3.00'!H60 -> 10162293
B53: =MAX(B$13:B52)+1 -> 17 | D53: Jurisdictional E(m) / R(m) | F53: (15) ÷ (16) | H53: =IF(H50=0,0,ROUND(H47/H50,4)) -> 0.0841 | I53: =IF(I51=0,0,ROUND(I47/I51,4)) -> 0.1321
B56: Calculation of Jurisdictional Allocation Ratio - 12 Month Average
B58: =MAX(B$13:B57)+1 -> 18 | D58: Retail Revenue | F58: ES Form 3.00 | H58: ='FORM 3.00'!G34 -> 27102113 | I58: =ROUND(H58/$H$62,4) -> 0.9682
B60: =MAX(B$13:B59)+1 -> 19 | D60: Sales for Resale | F60: Company Records | H60: =VLOOKUP(ExpMonth,SLSRSLtable,3,FALSE) -> 890752 | I60: =I62-I58 -> 0.0318
B62: =MAX(B$13:B61)+1 -> 20 | D62: Total Revenue | H62: =H58+H60 -> 27992865 | I62: =ROUND(H62/$H$62,4) -> 1
D66: Note: (A) Amounts determined by the Commission during six-month and two-year reviews.

Sheet FORM 1.20
G1: ES FORM 1.20
A3: =Company -> DUKE ENERGY KENTUCKY, INC.
A4: =Title -> ENVIRONMENTAL SURCHARGE REPORT
A6: Cost of Capital
A9: Line | E9: Weighted | F9: Gross up for | G9: Pre-Tax
A10: No. | B10: Capital Structure | C10: Ratio | D10: Cost | E10: Cost | F10: Tax Rate | G10: Rate of Return
E11: (A) | F11: (B) | G11: (A)x(B)
A13: 1 | B13: Short-term Debt | C13: 0.09772 | D13: 0.03083 | E13: =ROUND(C13*D13,5) -> 0.00301 | G13: =ROUND(E13,5) -> 0.00301
A14: =A13+1 -> 2 | B14: Long-term Debt | C14: 0.40977 | D14: 0.04243 | E14: =ROUND(C14*D14,5) -> 0.01739 | G14: =ROUND(E14,5) -> 0.01739
A15: =A14+1 -> 3 | B15: Common Equity | C15: 0.49251 | D15: 0.09725 | E15: =ROUND(C15*D15,5) -> 0.0479 | F15: 1.3373044 | G15: =ROUND(F15*E15,5) -> 0.06406
A16: 4 | B16: Total | C16: =SUM(C13:C15) -> 1 | E16: =SUM(E13:E15) -> 0.0683 | G16: =SUM(G13:G15) -> 0.08446
B20: Note: Capital structure, cost of debt and tax rate gross-up factor as approved in Case No. 2017-00321.
B21: These rates are to remain constant until the Commission sets base rates in Duke Kentucky's next
B22: base rate case proceeding.

Sheet FORM 2.00
F1: ES FORM 2.00
A3: =Company -> DUKE ENERGY KENTUCKY, INC.
A4: =Title -> ENVIRONMENTAL SURCHARGE REPORT
A6: Revenue Requirement of Environmental Compliance Costs
A8: ="For the Expense Month of "&TEXT(ExpMonth,"mmmm yyyy") -> For the Expense Month of August 2018
A11: Line
A12: No. | C12: Determination of Environmental Compliance Rate Base (RB) | D12: Source | F12: Amount
A14: =MAX(A13:A$13)+1 -> 1 | C14: Eligible Environmental Compliance Plant (Gross Plant) | D14: ES Form 2.10 | F14: ='FORM 2.10'!D51 -> 0
A15: =MAX(A$13:A14)+1 -> 2 | C15: Eligible Environmental Compliance CWIP Excluding AFUDC | D15: ES Form 2.10 | F15: ='FORM 2.10'!G51 -> 31997129
A16: =MAX(A$13:A15)+1 -> 3 | C16: Subtotal | F16: =F14+F15 -> 31997129
A18: =MAX(A$13:A17)+1 -> 4 | C18: Additions:
A19: =MAX(A$13:A18)+1 -> 5 | C19: Inventory - Emission Allowances | D19: ES Form 2.30 | F19: =ROUND('FORM 2.30'!G32,0) -> 27118
A20: =MAX(A$13:A19)+1 -> 6 | C20: Subtotal | F20: =SUM(F19:F19) -> 27118
A22: =MAX(A$13:A21)+1 -> 7 | C22: Deductions:
A23: =MAX(A$13:A22)+1 -> 8 | C23: Accumulated Depreciation on Eligible Environmental Compliance Plant | D23: ES Form 2.10 | F23: ='FORM 2.10'!E51 -> 0
A24: =MAX(A$13:A23)+1 -> 9 | C24: Accumulated Deferred Income Taxes on Eligible Environmental Compliance Plant | D24: ES Form 2.10 | F24: ='FORM 2.10'!I51 -> 0
A25: =MAX(A$13:A24)+1 -> 10 | C25: Accumulated Deferred Investment Tax Credits (ITC) on Eligible Environmental Compliance Plant | D25: ES Form 2.10 | F25: ='FORM 2.10'!H51 -> 0
A26: =MAX(A$13:A25)+1 -> 11 | C26: Subtotal | F26: =SUM(F23:F25) -> 0
A28: =MAX(A$13:A27)+1 -> 12 | C28: Environmental Compliance Rate Base | F28: =F16+F20-F26 -> 32024247
A31: =MAX(A$13:A30)+1 -> 13 | C31: Determination of Environmental Compliance Operating Expenses (OE)
A33: =MAX(A$13:A32)+1 -> 14 | C33: Monthly Depreciation Expense | D33: ES Form 2.10 | F33: ='FORM 2.10'!J51 -> 0
A34: =MAX(A$13:A33)+1 -> 15 | C34: Monthly Taxes Other Than Income Taxes | D34: ES Form 2.10 | F34: ='FORM 2.10'!K51 -> 456727
A35: =MAX(A$13:A34)+1 -> 16 | C35: Monthly Amortization Expense | D35: ES Form 2.20 | F35: =-'FORM 2.20'!N178 -> 524301
A36: =MAX(A$13:A35)+1 -> 17 | C36: Monthly Emission Allowance Expense | D36: ES Form 2.30 | F36: =ROUND('FORM 2.30'!E32,0) -> 1409
A37: =MAX(A$13:A36)+1 -> 18 | C37: Monthly Enivronmental Reagent Expense | D37: ES Form 2.50 | F37: ='FORM 2.50'!I18 -> 1278628
A38: =MAX(A$13:A37)+1 -> 19 | C38: Total Environmental Compliance Operating Expense | F38: =SUM(F33:F37) -> 2261065
A41: =A38+1 -> 20 | C41: Proceeds from Emission Allowance Sales (EAS)
A43: =A41+1 -> 21 | C43: SO2 Allowance Sales | F43: 0
A44: =A43+1 -> 22 | C44: NOx Allowances Sales | F44: 0
A45: =A44+1 -> 23 | C45: Total Emission Allowance Sales | F45: =SUM(F43:F44) -> 0
A48: =A45+1 -> 24 | C48: (Over) / Under Recovery
A49: =A48+1 -> 25 | C49: Adjusted Jurisdictional E(m) Authorized for Expense Month two Months Prior | F49: =Input!B14 -> 1413676
A50: =A49+1 -> 26 | C50: Jurisdictional E(m) Revenue Recovered in Current Expense Month | F50: =VLOOKUP(ExpMonth,Form3_Res,5,FALSE)+VLOOKUP(ExpMonth,Form3_Non,5,FALSE) -> 1540618
A51: =A50+1 -> 27 | C51: (Over) / Under Recovery | F51: =F49-F50 -> -126942
C53: Note: (Over) recovery will be deducted from Jurisdictional E(m)
C54: Under recovery will be added to Jurisdictional E(m)

Sheet FORM 2.10
K1: ES FORM 2.10
B3: =Company -> DUKE ENERGY KENTUCKY, INC.
B4: =Title -> ENVIRONMENTAL SURCHARGE REPORT
B6: Plant, Accumulated Depreciation, CWIP, ITC, ADIT
B7: Depreciation Expense, Taxes Other Than Income Taxes
B9: ="For the Expense Month of "&TEXT(ExpMonth,"mmmm yyyy") -> For the Expense Month of August 2018
C12: (1) | D12: (2) | E12: (3) | F12: (4) | G12: (5) | H12: (6) | I12: (7) | J12: (8) | K12: (9)
D13: Gross | F13: Net | G13: CWIP | H13: Accumulated | I13: Accumulated
D14: Plant | E14: Accumulated | F14: Plant | G14: Excluding | H14: Deferred | I14: Deferred | K14: Monthly
B15: Project | D15: in-Service | E15: Depreciation | F15: in-Service | G15: AFUDC | H15: ITC | I15: Tax Balance | J15: Monthly | K15: Property
D16: as of | E16: as of | F16: as of | G16: as of | H16: as of | I16: as of | J16: Depreciation | K16: Tax
B17: No. | C17: Description | D17: =ExpMonth -> 2018-08-01 | E17: 2018-08-01 | F17: 2018-08-01 | G17: 2018-08-01 | H17: 2018-08-01 | I17: 2018-08-01 | J17: Expense | K17: Expense
F18: (2)-(3)
B20: 1 | C20: EB020290 Lined Retention Basin West | D20: 0 | E20: 0 | F20: =D20-E20 -> 0 | G20: 7080766 | H20: 0 | I20: 0 | J20: 0 | K20: =ROUND((F20+G20)*PropTax_Structures,0) -> 101071
B22: 2 | C22: EB020745 Lined Retention Basin East | D22: 0 | E22: 0 | F22: =D22-E22 -> 0 | G22: 0 | H22: 0 | I22: 0 | J22: 0 | K22: =ROUND((F22+G22)*PropTax_Structures,0) -> 0
B24: 3 | C24: EB020298 East Bend SW/PW Reroute | D24: 0 | E24: 0 | F24: =D24-E24 -> 0 | G24: 24916363 | H24: 0 | I24: 0 | J24: 0 | K24: =ROUND((F24+G24)*PropTax_Structures,0) -> 355656
B26: 4 | F26: =D26-E26 -> 0
B28: 5 | F28: =D28-E28 -> 0
B30: 6 | F30: =D30-E30 -> 0
B32: 7 | F32: =D32-E32 -> 0
B34: 8 | F34: =D34-E34 -> 0
B36: 9 | F36: =D36-E36 -> 0
B38: 10 | F38: =D38-E38 -> 0
B40: 11 | F40: =D40-E40 -> 0
B42: 12 | F42: =D42-E42 -> 0
B44: 13 | F44: =D44-E44 -> 0
B46: 14 | F46: =D46-E46 -> 0
B48: 15 | F48: =D48-E48 -> 0
D51: =SUM(D20:D49) -> 0 | E51: =SUM(E20:E49) -> 0 | F51: 0 | G51: 31997129 | H51: 0 | I51: 0 | J51: 0 | K51: 456727

Sheet FORM 2.20
N1: ES FORM 2.20
N2: Page 1 of 3
A3: =Company -> DUKE ENERGY KENTUCKY, INC.
A4: =Title -> ENVIRONMENTAL SURCHARGE REPORT
A6: Amortization Calculation for Coal Ash ARO
G9: Recovery: | K9: Recovery: | N9: Total
A10: Line | B10: Period | D10: Cash Spend | E10: COR Credit | F10: Carrying Cost | G10: 10-Yr Amort. | H10: Ending Balance | J10: Cash Spend | K10: 2-Month Cycle | L10: Ending Balance | N10: Recovery
A11: No. | B11: (1) | D11: (2) | E11: (3) | F11: (4) | G11: (5) | H11: (6) | J11: (7) | K11: (8) | L11: (9) | N11: (10) = (5) + (8)
A12: 1 | B12: 2015 Total | C12: Actual | D12: 3858084 | E12: -856412 | F12: 20378 | G12: 0 | H12: =SUM(D12:G12) -> 3022050 | J12: 0 | K12: 0 | L12: 0 | M12: =B12 -> 2015 Total | N12: 0
A13: =A12+1 -> 2 | B13: 2016 Total | C13: Actual | D13: 4486812 | E13: -107052 | F13: 379037 | G13: 0 | H13: =SUM(D13:G13)+H12 -> 7780847 | J13: 0 | K13: 0 | M13: =B13 -> 2016 Total | N13: 0
A14: =A13+1 -> 3 | B14: Jan-17 | C14: Actual | D14: 358148 | E14: 0 | F14: 43243 | G14: 0 | H14: =SUM(D14:G14)+H13 -> 8182238 | J14: 0 | K14: =-J12 -> 0 | M14: Jan-17 | N14: 0
A15: =A14+1 -> 4 | B15: Feb-17 | C15: Actual | D15: 424021 | E15: 0 | F15: 40351 | G15: 0 | H15: 8646610 | J15: 0 | K15: =-J13 -> 0 | M15: Feb-17 | N15: 0
A16: =A15+1 -> 5 | B16: Mar-17 | C16: Actual | D16: 692184 | E16: -26763 | F16: 44724 | G16: 0 | H16: 9356755 | J16: 0 | K16: 0 | M16: Mar-17 | N16: 0
A17: 6 | B17: Apr-17 | C17: Actual | D17: 254067 | E17: 0 | F17: 50949 | G17: 0 | H17: 9661771 | J17: 0 | K17: 0 | M17: Apr-17 | N17: 0
A18: 7 | B18: May-17 | C18: Actual | D18: 608377 | E18: 0 | F18: 56141 | G18: 0 | H18: 10326289 | J18: 0 | K18: 0 | M18: May-17 | N18: 0
A19: 8 | B19: Jun-17 | C19: Actual | D19: 265619 | E19: -26763 | F19: 53472 | G19: 0 | H19: 10618617 | J19: 0 | K19: 0 | M19: Jun-17 | N19: 0
A20: 9 | B20: Jul-17 | C20: Actual | D20: 220636 | E20: 0 | F20: 51558 | G20: 0 | H20: 10890811 | J20: 0 | K20: 0 | M20: Jul-17 | N20: 0
A21: 10 | B21: Aug-17 | C21: Actual | D21: 272053 | E21: 0 | F21: 47731 | G21: 0 | H21: 11210595 | J21: 0 | K21: 0 | M21: Aug-17 | N21: 0
A22: 11 | B22: Sep-17 | C22: Actual | D22: 233743 | E22: -26763 | F22: 44389 | G22: 0 | H22: 11461964 | J22: 0 | K22: 0 | M22: Sep-17 | N22: 0
A23: 12 | B23: Oct-17 | C23: Actual | D23: 444793 | E23: 0 | F23: 60670 | G23: 0 | H23: 11967427 | J23: 0 | K23: 0 | M23: Oct-17 | N23: 0
A24: 13 | B24: Nov-17 | C24: Actual | D24: 525770 | E24: 0 | F24: 68573 | G24: 0 | H24: 12561770 | J24: 0 | K24: 0 | M24: Nov-17 | N24: 0
A25: 14 | B25: Dec-17 | C25: Actual | D25: 2482493 | E25: -26763 | F25: 82850 | G25: 0 | H25: 15100350 | J25: 0 | K25: 0 | M25: Dec-17 | N25: 0
A26: 15 | B26: Jan-18 | C26: Actual | D26: 510525 | E26: 0 | F26: 91185 | G26: 0 | H26: 15702060 | J26: 0 | K26: 0 | M26: Jan-18 | N26: 0
A27: 16 | B27: Feb-18 | C27: Actual | D27: 89648 | E27: 0 | F27: 91534 | G27: 0 | H27: 15883242 | J27: 0 | K27: 0 | M27: Feb-18 | N27: 0
A28: 17 | B28: Mar-18 | C28: Actual | D28: 396977 | E28: -26763 | F28: 93696 | G28: 0 | H28: 16347152 | J28: 0 | K28: 0 | M28: Mar-18 | N28: 0
A29: 18 | B29: Apr-18 | C29: Actual | D29: 132294 | E29: 0 | F29: 111722 | G29: 0 | H29: 16591168 | J29: 173000 | K29: 0 | L29: =L28+J29+K29 -> 173000 | M29: Apr-18 | N29: 0
A30: 19 | B30: May-18 | C30: Actual | E30: 0 | F30: 112480 | G30: 0 | H30: 16703648 | J30: 100234 | K30: 0 | L30: =L29+J30+K30 -> 273234 | M30: May-18 | N30: 0
A31: 20 | B31: Jun-18 | C31: Actual | E31: 0 | F31: 111870 | G31: -202486 | H31: 16613032 | J31: 150901 | K31: -173000 | L31: 251135 | M31: Jun-18 | N31: =K31+G31 -> -375486
A32: 21 | B32: Jul-18 | C32: Actual | E32: 0 | F32: 111255 | G32: -202486 | H32: 16521801 | J32: 196585 | K32: -100234 | L32: 347486 | M32: Jul-18 | N32: =K32+G32 -> -302720
A33: 22 | B33: Aug-18 | C33: Actual | E33: 0 | F33: 110637 | G33: -202486 | H33: 16429952 | J33: 321815 | K33: -150901 | L33: 518400 | M33: Aug-18 | N33: -353387
A34: 23 | B34: Sep-18 | C34: Actual | E34: 0 | F34: 110014 | G34: -202486 | H34: 16337480 | J34: 0 | K34: -196585 | L34: 321815 | M34: Sep-18 | N34: -399071
A35: 24 | B35: Oct-18 | C35: Actual | E35: 0 | F35: 109387 | G35: -202486 | H35: 16244381 | J35: 0 | K35: -321815 | L35: 0 | M35: Oct-18 | N35: -524301
A36: 25 | B36: Nov-18 | C36: Actual | E36: 0 | F36: 108756 | G36: -202486 | H36: 16150651 | J36: 0 | K36: 0 | L36: 0 | M36: Nov-18 | N36: -202486
A37: 26 | B37: Dec-18 | C37: Actual | E37: 0 | F37: 108121 | G37: -202486 | H37: 16056286 | J37: 0 | K37: 0 | L37: 0 | M37: Dec-18 | N37: -202486
A38: 27 | B38: Jan-19 | C38: Actual | E38: 0 | F38: 107481 | G38: -202486 | H38: 15961281 | J38: 0 | K38: 0 | L38: 0 | M38: Jan-19 | N38: -202486
A39: 28 | B39: Feb-19 | C39: Actual | E39: 0 | F39: 106837 | G39: -202486 | H39: 15865632 | J39: 0 | K39: 0 | L39: 0 | M39: Feb-19 | N39: -202486
A40: 29 | B40: Mar-19 | C40: Actual | E40: 0 | F40: 106188 | G40: -202486 | H40: 15769334 | J40: 0 | K40: 0 | L40: 0 | M40: Mar-19 | N40: -202486
A41: 30 | B41: Apr-19 | C41: Actual | E41: 0 | F41: 105535 | G41: -202486 | H41: 15672383 | J41: 0 | K41: 0 | L41: 0 | M41: Apr-19 | N41: -202486
A42: 31 | B42: May-19 | C42: Actual | E42: 0 | F42: 104878 | G42: -202486 | H42: 15574775 | J42: 0 | K42: 0 | L42: 0 | M42: May-19 | N42: -202486
A43: 32 | B43: Jun-19 | C43: Actual | E43: 0 | F43: 104216 | G43: -202486 | H43: 15476505 | J43: 0 | K43: 0 | L43: 0 | M43: Jun-19 | N43: -202486
A44: 33 | B44: Jul-19 | C44: Actual | E44: 0 | F44: 103550 | G44: -202486 | H44: 15377569 | J44: 0 | K44: 0 | L44: 0 | M44: Jul-19 | N44: -202486
A45: 34 | B45: Aug-19 | C45: Actual | E45: 0 | F45: 102880 | G45: -202486 | H45: 15277963 | J45: 0 | K45: 0 | L45: 0 | M45: Aug-19 | N45: -202486
A46: 35 | B46: Sep-19 | C46: Actual | E46: 0 | F46: 102204 | G46: -202486 | H46: 15177681 | J46: 0 | K46: 0 | L46: 0 | M46: Sep-19 | N46: -202486
A47: 36 | B47: Oct-19 | C47: Actual | E47: 0 | F47: 101524 | G47: -202486 | H47: 15076719 | J47: 0 | K47: 0 | L47: 0 | M47: Oct-19 | N47: -202486
A48: 37 | B48: Nov-19 | C48: Actual | E48: 0 | F48: 100840 | G48: -202486 | H48: 14975073 | J48: 0 | K48: 0 | L48: 0 | M48: Nov-19 | N48: -202486
A49: 38 | B49: Dec-19 | C49: Actual | E49: 0 | F49: 100151 | G49: -202486 | H49: 14872738 | J49: 0 | K49: 0 | L49: 0 | M49: Dec-19 | N49: -202486
A50: 39 | B50: Jan-20 | C50: Actual | E50: 0 | F50: 99457 | G50: -202486 | H50: 14769709 | J50: 0 | K50: 0 | L50: 0 | M50: Jan-20 | N50: -202486
A51: 40 | B51: Feb-20 | C51: Actual | E51: 0 | F51: 98759 | G51: -202486 | H51: 14665982 | J51: 0 | K51: 0 | L51: 0 | M51: Feb-20 | N51: -202486
A52: 41 | B52: Mar-20 | C52: Actual | E52: 0 | F52: 98055 | G52: -202486 | H52: 14561551 | J52: 0 | K52: 0 | L52: 0 | M52: Mar-20 | N52: -202486
A53: 42 | B53: Apr-20 | C53: Actual | E53: 0 | F53: 97347 | G53: -202486 | H53: 14456412 | J53: 0 | K53: 0 | L53: 0 | M53: Apr-20 | N53: -202486
A54: 43 | B54: May-20 | C54: Actual | E54: 0 | F54: 96635 | G54: -202486 | H54: 14350561 | J54: 0 | K54: 0 | L54: 0 | M54: May-20 | N54: -202486
A55: 44 | B55: Jun-20 | C55: Actual | E55: 0 | F55: 95917 | G55: -202486 | H55: 14243992 | J55: 0 | K55: 0 | L55: 0 | M55: Jun-20 | N55: -202486
A56: 45 | B56: Jul-20 | C56: Actual | E56: 0 | F56: 95194 | G56: -202486 | H56: 14136700 | J56: 0 | K56: 0 | L56: 0 | M56: Jul-20 | N56: -202486
A57: 46 | B57: Aug-20 | C57: Actual | E57: 0 | F57: 94467 | G57: -202486 | H57: 14028681 | J57: 0 | K57: 0 | L57: 0 | M57: Aug-20 | N57: -202486
A58: 47 | B58: Sep-20 | C58: Actual | E58: 0 | F58: 93735 | G58: -202486 | H58: 13919930 | J58: 0 | K58: 0 | L58: 0 | M58: Sep-20 | N58: -202486
A59: 48 | B59: Oct-20 | C59: Actual | E59: 0 | F59: 92997 | G59: -202486 | H59: 13810441 | J59: 0 | K59: 0 | L59: 0 | M59: Oct-20 | N59: -202486
A60: 49 | B60: Nov-20 | C60: Actual | E60: 0 | F60: 92255 | G60: -202486 | H60: 13700210 | J60: 0 | K60: 0 | L60: 0 | M60: Nov-20 | N60: -202486
A61: 50 | B61: Dec-20 | C61: Actual | E61: 0 | F61: 91508 | G61: -202486 | H61: 13589232 | J61: 0 | K61: 0 | L61: 0 | M61: Dec-20 | N61: -202486
N63: ES FORM 2.20
N64: Page 2 of 3
A65: =Company -> DUKE ENERGY KENTUCKY, INC.
A66: =Title -> ENVIRONMENTAL SURCHARGE REPORT
A68: Amortization Calculation for Coal Ash ARO
G71: Recovery: | K71: Recovery: | N71: Total
A72: Line | B72: Period | D72: Cash Spend | E72: COR Credit | F72: Carrying Cost | G72: 10-Yr Amort. | H72: Ending Balance | J72: Cash Spend | K72: 2-Month Cycle | L72: Ending Balance | N72: Recovery
A73: No. | B73: (1) | D73: (2) | E73: (3) | F73: (4) | G73: (5) | H73: (6) | J73: (7) | K73: (8) | L73: (9) | N73: (10) = (5) + (8)
A74: =A61+1 -> 51 | B74: Jan-21 | C74: Actual | E74: 0 | F74: 90756 | G74: -202486 | H74: =SUM(D74:G74)+H61 -> 13477502 | J74: 0 | K74: =-J60 -> 0 | L74: =L61+J74+K74 -> 0 | M74: Jan-21 | N74: -202486
A75: 52 | B75: Feb-21 | C75: Actual | E75: 0 | F75: 89998 | G75: -202486 | H75: 13365014 | J75: 0 | K75: =-J61 -> 0 | L75: 0 | M75: Feb-21 | N75: -202486
A76: 53 | B76: Mar-21 | C76: Actual | E76: 0 | F76: 89235 | G76: -202486 | H76: 13251763 | J76: 0 | K76: 0 | L76: 0 | M76: Mar-21 | N76: -202486
A77: 54 | B77: Apr-21 | C77: Actual | E77: 0 | F77: 88468 | G77: -202486 | H77: 13137745 | J77: 0 | K77: 0 | L77: 0 | M77: Apr-21 | N77: -202486
A78: 55 | B78: May-21 | C78: Actual | E78: 0 | F78: 87695 | G78: -202486 | H78: 13022954 | J78: 0 | K78: 0 | L78: 0 | M78: May-21 | N78: -202486
A79: 56 | B79: Jun-21 | C79: Actual | E79: 0 | F79: 86916 | G79: -202486 | H79: 12907384 | J79: 0 | K79: 0 | L79: 0 | M79: Jun-21 | N79: -202486
A80: 57 | B80: Jul-21 | C80: Actual | E80: 0 | F80: 86133 | G80: -202486 | H80: 12791031 | J80: 0 | K80: 0 | L80: 0 | M80: Jul-21 | N80: -202486
A81: 58 | B81: Aug-21 | C81: Actual | E81: 0 | F81: 85344 | G81: -202486 | H81: 12673889 | J81: 0 | K81: 0 | L81: 0 | M81: Aug-21 | N81: -202486
A82: 59 | B82: Sep-21 | C82: Actual | E82: 0 | F82: 84550 | G82: -202486 | H82: 12555953 | J82: 0 | K82: 0 | L82: 0 | M82: Sep-21 | N82: -202486
A83: 60 | B83: Oct-21 | C83: Actual | E83: 0 | F83: 83750 | G83: -202486 | H83: 12437217 | J83: 0 | K83: 0 | L83: 0 | M83: Oct-21 | N83: -202486
A84: 61 | B84: Nov-21 | C84: Actual | E84: 0 | F84: 82945 | G84: -202486 | H84: 12317676 | J84: 0 | K84: 0 | L84: 0 | M84: Nov-21 | N84: -202486
A85: 62 | B85: Dec-21 | C85: Actual | E85: 0 | F85: 82135 | G85: -202486 | H85: 12197325 | J85: 0 | K85: 0 | L85: 0 | M85: Dec-21 | N85: -202486
A86: 63 | B86: Jan-22 | C86: Actual | E86: 0 | F86: 81319 | G86: -202486 | H86: 12076158 | J86: 0 | K86: 0 | L86: 0 | M86: Jan-22 | N86: -202486
A87: 64 | B87: Feb-22 | C87: Actual | E87: 0 | F87: 80498 | G87: -202486 | H87: 11954170 | J87: 0 | K87: 0 | L87: 0 | M87: Feb-22 | N87: -202486
A88: 65 | B88: Mar-22 | C88: Actual | E88: 0 | F88: 79671 | G88: -202486 | H88: 11831355 | J88: 0 | K88: 0 | L88: 0 | M88: Mar-22 | N88: -202486
A89: 66 | B89: Apr-22 | C89: Actual | E89: 0 | F89: 78838 | G89: -202486 | H89: 11707707 | J89: 0 | K89: 0 | L89: 0 | M89: =B89 -> Apr-22 | N89: -202486
A90: 67 | B90: May-22 | C90: Actual | E90: 0 | F90: 78000 | G90: -202486 | H90: =SUM(D90:G90)+H89 -> 11583221 | J90: 0 | K90: 0 | L90: 0 | M90: May-22 | N90: -202486
A91: 68 | B91: Jun-22 | C91: Actual | E91: 0 | F91: 77156 | G91: -202486 | H91: 11457891 | J91: 0 | K91: =-J89 -> 0 | L91: 0 | M91: Jun-22 | N91: -202486
A92: =A91+1 -> 69 | B92: Jul-22 | C92: Actual | E92: 0 | F92: 76306 | G92: -202486 | H92: 11331711 | J92: 0 | K92: 0 | L92: 0 | M92: Jul-22 | N92: -202486
A93: 70 | B93: Aug-22 | C93: Actual | E93: 0 | F93: 75451 | G93: -202486 | H93: 11204676 | J93: 0 | K93: 0 | L93: 0 | M93: Aug-22 | N93: -202486
A94: 71 | B94: Sep-22 | C94: Actual | E94: 0 | F94: 74589 | G94: -202486 | H94: 11076779 | J94: 0 | K94: 0 | L94: 0 | M94: Sep-22 | N94: -202486
A95: 72 | B95: Oct-22 | C95: Actual | E95: 0 | F95: 73722 | G95: -202486 | H95: 10948015 | J95: 0 | K95: 0 | L95: 0 | M95: Oct-22 | N95: -202486
A96: 73 | B96: Nov-22 | C96: Actual | E96: 0 | F96: 72849 | G96: -202486 | H96: 10818378 | J96: 0 | K96: 0 | L96: 0 | M96: Nov-22 | N96: -202486
A97: 74 | B97: Dec-22 | C97: Actual | E97: 0 | F97: 71971 | G97: -202486 | H97: 10687863 | J97: 0 | K97: 0 | L97: 0 | M97: Dec-22 | N97: -202486
A98: 75 | B98: Jan-23 | C98: Actual | E98: 0 | F98: 71086 | G98: -202486 | H98: 10556463 | J98: 0 | K98: 0 | L98: 0 | M98: Jan-23 | N98: -202486
A99: 76 | B99: Feb-23 | C99: Actual | E99: 0 | F99: 70195 | G99: -202486 | H99: 10424172 | J99: 0 | K99: 0 | L99: 0 | M99: Feb-23 | N99: -202486
A100: 77 | B100: Mar-23 | C100: Actual | E100: 0 | F100: 69298 | G100: -202486 | H100: 10290984 | J100: 0 | K100: 0 | L100: 0 | M100: Mar-23 | N100: -202486
A101: 78 | B101: Apr-23 | C101: Actual | E101: 0 | F101: 68395 | G101: -202486 | H101: 10156893 | J101: 0 | K101: 0 | L101: 0 | M101: Apr-23 | N101: -202486
A102: 79 | B102: May-23 | C102: Actual | E102: 0 | F102: 67486 | G102: -202486 | H102: 10021893 | J102: 0 | K102: 0 | L102: 0 | M102: May-23 | N102: -202486
A103: 80 | B103: Jun-23 | C103: Actual | E103: 0 | F103: 66571 | G103: -202486 | H103: 9885978 | J103: 0 | K103: 0 | L103: 0 | M103: Jun-23 | N103: -202486
A104: 81 | B104: Jul-23 | C104: Actual | E104: 0 | F104: 65649 | G104: -202486 | H104: 9749141 | J104: 0 | K104: 0 | L104: 0 | M104: Jul-23 | N104: -202486
A105: 82 | B105: Aug-23 | C105: Actual | E105: 0 | F105: 64722 | G105: -202486 | H105: 9611377 | J105: 0 | K105: 0 | L105: 0 | M105: Aug-23 | N105: -202486
A106: 83 | B106: Sep-23 | C106: Actual | E106: 0 | F106: 63788 | G106: -202486 | H106: 9472679 | J106: 0 | K106: 0 | L106: =L105+J106+K106 -> 0 | M106: Sep-23 | N106: -202486
A107: 84 | B107: Oct-23 | C107: Actual | E107: 0 | F107: 62847 | G107: -202486 | H107: 9333040 | J107: 0 | K107: 0 | L107: 0 | M107: Oct-23 | N107: -202486
A108: 85 | B108: Nov-23 | C108: Actual | E108: 0 | F108: 61901 | G108: -202486 | H108: 9192455 | J108: 0 | K108: 0 | L108: 0 | M108: Nov-23 | N108: =K108+G108 -> -202486
A109: 86 | B109: Dec-23 | C109: Actual | E109: 0 | F109: 60948 | G109: -202486 | H109: 9050917 | J109: 0 | K109: 0 | L109: 0 | M109: Dec-23 | N109: -202486
A110: 87 | B110: Jan-24 | C110: Actual | E110: 0 | F110: 59988 | G110: -202486 | H110: 8908419 | J110: 0 | K110: 0 | L110: 0 | M110: Jan-24 | N110: -202486
A111: 88 | B111: Feb-24 | C111: Actual | E111: 0 | F111: 59022 | G111: -202486 | H111: 8764955 | J111: 0 | K111: 0 | L111: 0 | M111: Feb-24 | N111: -202486
A112: 89 | B112: Mar-24 | C112: Actual | E112: 0 | F112: 58049 | G112: -202486 | H112: 8620518 | J112: 0 | K112: 0 | L112: 0 | M112: Mar-24 | N112: -202486
A113: 90 | B113: Apr-24 | C113: Actual | E113: 0 | F113: 57070 | G113: -202486 | H113: 8475102 | J113: 0 | K113: 0 | L113: 0 | M113: Apr-24 | N113: -202486
A114: 91 | B114: May-24 | C114: Actual | E114: 0 | F114: 56084 | G114: -202486 | H114: 8328700 | J114: 0 | K114: 0 | L114: 0 | M114: May-24 | N114: -202486
A115: 92 | B115: Jun-24 | C115: Actual | E115: 0 | F115: 55092 | G115: -202486 | H115: 8181306 | J115: 0 | K115: 0 | L115: 0 | M115: Jun-24 | N115: -202486
A116: 93 | B116: Jul-24 | C116: Actual | E116: 0 | F116: 54093 | G116: -202486 | H116: 8032913 | J116: 0 | K116: 0 | L116: 0 | M116: Jul-24 | N116: -202486
A117: 94 | B117: Aug-24 | C117: Actual | E117: 0 | F117: 53087 | G117: -202486 | H117: 7883514 | J117: 0 | K117: 0 | L117: 0 | M117: Aug-24 | N117: -202486
A118: 95 | B118: Sep-24 | C118: Actual | E118: 0 | F118: 52074 | G118: -202486 | H118: 7733102 | J118: 0 | K118: 0 | L118: 0 | M118: Sep-24 | N118: -202486
A119: 96 | B119: Oct-24 | C119: Actual | E119: 0 | F119: 51054 | G119: -202486 | H119: 7581670 | J119: 0 | K119: 0 | L119: 0 | M119: Oct-24 | N119: -202486
A120: 97 | B120: Nov-24 | C120: Actual | E120: 0 | F120: 50027 | G120: -202486 | H120: 7429211 | J120: 0 | K120: 0 | L120: 0 | M120: Nov-24 | N120: -202486
A121: 98 | B121: Dec-24 | C121: Actual | E121: 0 | F121: 48994 | G121: -202486 | H121: 7275719 | J121: 0 | K121: 0 | L121: 0 | M121: Dec-24 | N121: -202486
A122: 99 | B122: Jan-25 | C122: Actual | E122: 0 | F122: 47953 | G122: -202486 | H122: 7121186 | J122: 0 | K122: 0 | L122: 0 | M122: Jan-25 | N122: -202486
N124: ES FORM 2.20
N125: Page 3 of 3
A126: =Company -> DUKE ENERGY KENTUCKY, INC.
A127: =Title -> ENVIRONMENTAL SURCHARGE REPORT
A129: Amortization Calculation for Coal Ash ARO
G132: Recovery: | K132: Recovery: | N132: Total
A133: Line | B133: Period | D133: Cash Spend | E133: COR Credit | F133: Carrying Cost | G133: 10-Yr Amort. | H133: Ending Balance | J133: Cash Spend | K133: 2-Month Cycle | L133: Ending Balance | N133: Recovery
A134: No. | B134: (1) | D134: (2) | E134: (3) | F134: (4) | G134: (5) | H134: (6) | J134: (7) | K134: (8) | L134: (9) | N134: (10) = (5) + (8)
A135: =A122+1 -> 100 | B135: Feb-25 | C135: Actual | E135: 0 | F135: 46906 | G135: -202486 | H135: =SUM(D135:G135)+H122 -> 6965606 | J135: 0 | K135: =-J121 -> 0 | L135: =L122+J135+K135 -> 0 | M135: Feb-25 | N135: -202486
A136: 101 | B136: Mar-25 | C136: Actual | E136: 0 | F136: 45851 | G136: -202486 | H136: 6808971 | J136: 0 | K136: =-J122 -> 0 | L136: 0 | M136: Mar-25 | N136: -202486
A137: 102 | B137: Apr-25 | C137: Actual | E137: 0 | F137: 44789 | G137: -202486 | H137: 6651274 | J137: 0 | K137: 0 | L137: 0 | M137: Apr-25 | N137: -202486
A138: 103 | B138: May-25 | C138: Actual | E138: 0 | F138: 43720 | G138: -202486 | H138: 6492508 | J138: 0 | K138: 0 | L138: 0 | M138: May-25 | N138: -202486
A139: 104 | B139: Jun-25 | C139: Actual | E139: 0 | F139: 42643 | G139: -202486 | H139: 6332665 | J139: 0 | K139: 0 | L139: 0 | M139: Jun-25 | N139: -202486
A140: 105 | B140: Jul-25 | C140: Actual | E140: 0 | F140: 41560 | G140: -202486 | H140: 6171739 | J140: 0 | K140: 0 | L140: 0 | M140: Jul-25 | N140: -202486
A141: 106 | B141: Aug-25 | C141: Actual | E141: 0 | F141: 40469 | G141: -202486 | H141: 6009722 | J141: 0 | K141: 0 | L141: 0 | M141: Aug-25 | N141: -202486
A142: 107 | B142: Sep-25 | C142: Actual | E142: 0 | F142: 39370 | G142: -202486 | H142: 5846606 | J142: 0 | K142: 0 | L142: 0 | M142: Sep-25 | N142: -202486
A143: 108 | B143: Oct-25 | C143: Actual | E143: 0 | F143: 38265 | G143: -202486 | H143: 5682385 | J143: 0 | K143: 0 | L143: 0 | M143: Oct-25 | N143: -202486
A144: 109 | B144: Nov-25 | C144: Actual | E144: 0 | F144: 37151 | G144: -202486 | H144: 5517050 | J144: 0 | K144: 0 | L144: 0 | M144: Nov-25 | N144: -202486
A145: 110 | B145: Dec-25 | C145: Actual | E145: 0 | F145: 36030 | G145: -202486 | H145: 5350594 | J145: 0 | K145: 0 | L145: 0 | M145: Dec-25 | N145: -202486
A146: 111 | B146: Jan-26 | C146: Actual | E146: 0 | F146: 34902 | G146: -202486 | H146: 5183010 | J146: 0 | K146: 0 | L146: 0 | M146: Jan-26 | N146: -202486
A147: 112 | B147: Feb-26 | C147: Actual | E147: 0 | F147: 33766 | G147: -202486 | H147: 5014290 | J147: 0 | K147: 0 | L147: 0 | M147: Feb-26 | N147: -202486
A148: 113 | B148: Mar-26 | C148: Actual | E148: 0 | F148: 32622 | G148: -202486 | H148: 4844426 | J148: 0 | K148: 0 | L148: 0 | M148: Mar-26 | N148: -202486
A149: 114 | B149: Apr-26 | C149: Actual | E149: 0 | F149: 31470 | G149: -202486 | H149: 4673410 | J149: 0 | K149: 0 | L149: 0 | M149: Apr-26 | N149: -202486
A150: 115 | B150: May-26 | C150: Actual | E150: 0 | F150: 30311 | G150: -202486 | H150: 4501235 | J150: 0 | K150: 0 | L150: 0 | M150: May-26 | N150: -202486
A151: 116 | B151: Jun-26 | C151: Actual | E151: 0 | F151: 29144 | G151: -202486 | H151: 4327893 | J151: 0 | K151: 0 | L151: 0 | M151: Jun-26 | N151: -202486
A152: 117 | B152: Jul-26 | C152: Actual | E152: 0 | F152: 27968 | G152: -202486 | H152: 4153375 | J152: 0 | K152: 0 | L152: 0 | M152: Jul-26 | N152: -202486
A153: 118 | B153: Aug-26 | C153: Actual | E153: 0 | F153: 26785 | G153: -202486 | H153: 3977674 | J153: 0 | K153: 0 | L153: 0 | M153: Aug-26 | N153: -202486
A154: 119 | B154: Sep-26 | C154: Actual | E154: 0 | F154: 25594 | G154: -202486 | H154: 3800782 | J154: 0 | K154: 0 | L154: 0 | M154: Sep-26 | N154: -202486
A155: 120 | B155: Oct-26 | C155: Actual | E155: 0 | F155: 24395 | G155: -202486 | H155: 3622691 | J155: 0 | K155: 0 | L155: 0 | M155: Oct-26 | N155: -202486
A156: 121 | B156: Nov-26 | C156: Actual | E156: 0 | F156: 23188 | G156: -202486 | H156: 3443393 | J156: 0 | K156: 0 | L156: 0 | M156: Nov-26 | N156: -202486
A157: 122 | B157: Dec-26 | C157: Actual | E157: 0 | F157: 21972 | G157: -202486 | H157: 3262879 | J157: 0 | K157: 0 | L157: 0 | M157: Dec-26 | N157: -202486
A158: 123 | B158: Jan-27 | C158: Actual | E158: 0 | F158: 20748 | G158: -202486 | H158: 3081141 | J158: 0 | K158: 0 | L158: 0 | M158: Jan-27 | N158: -202486
A159: 124 | B159: Feb-27 | C159: Actual | E159: 0 | F159: 19516 | G159: -202486 | H159: 2898171 | J159: 0 | K159: 0 | L159: 0 | M159: Feb-27 | N159: -202486
A160: 125 | B160: Mar-27 | C160: Actual | E160: 0 | F160: 18276 | G160: -202486 | H160: 2713961 | J160: 0 | K160: 0 | L160: 0 | M160: Mar-27 | N160: -202486
A161: 126 | B161: Apr-27 | C161: Actual | E161: 0 | F161: 17027 | G161: -202486 | H161: 2528502 | J161: 0 | K161: 0 | L161: 0 | M161: Apr-27 | N161: -202486
A162: 127 | B162: May-27 | C162: Actual | E162: 0 | F162: 15769 | G162: -202486 | H162: 2341785 | J162: 0 | K162: 0 | L162: 0 | M162: May-27 | N162: -202486
A163: 128 | B163: Jun-27 | C163: Actual | E163: 0 | F163: 14504 | G163: -202486 | H163: 2153803 | J163: 0 | K163: 0 | L163: 0 | M163: Jun-27 | N163: -202486
A164: 129 | B164: Jul-27 | C164: Actual | E164: 0 | F164: 13229 | G164: -202486 | H164: 1964546 | J164: 0 | K164: 0 | L164: 0 | M164: Jul-27 | N164: -202486
A165: 130 | B165: Aug-27 | C165: Actual | E165: 0 | F165: 11946 | G165: -202486 | H165: 1774006 | J165: 0 | K165: 0 | L165: 0 | M165: =B165 -> Aug-27 | N165: -202486
A166: 131 | B166: Sep-27 | C166: Actual | E166: 0 | F166: 10654 | G166: -202486 | H166: =SUM(D166:G166)+H165 -> 1582174 | J166: 0 | K166: 0 | L166: 0 | M166: Sep-27 | N166: -202486
A167: 132 | B167: Oct-27 | C167: Actual | E167: 0 | F167: 9354 | G167: -202486 | H167: 1389042 | J167: 0 | K167: =-J165 -> 0 | L167: 0 | M167: Oct-27 | N167: -202486
A168: =A167+1 -> 133 | B168: Nov-27 | C168: Actual | E168: 0 | F168: 8045 | G168: -202486 | H168: 1194601 | J168: 0 | K168: 0 | L168: 0 | M168: Nov-27 | N168: -202486
A169: 134 | B169: Dec-27 | C169: Actual | E169: 0 | F169: 6726 | G169: -202486 | H169: 998841 | J169: 0 | K169: 0 | L169: 0 | M169: Dec-27 | N169: -202486
A170: 135 | B170: Jan-28 | C170: Actual | E170: 0 | F170: 5399 | G170: -202486 | H170: 801754 | J170: 0 | K170: 0 | L170: 0 | M170: Jan-28 | N170: -202486
A171: 136 | B171: Feb-28 | C171: Actual | E171: 0 | F171: 4063 | G171: -202486 | H171: 603331 | J171: 0 | K171: 0 | L171: 0 | M171: Feb-28 | N171: -202486
A172: 137 | B172: Mar-28 | C172: Actual | E172: 0 | F172: 2718 | G172: -202486 | H172: 403563 | J172: 0 | K172: 0 | L172: 0 | M172: Mar-28 | N172: -202486
A173: 138 | B173: Apr-28 | C173: Actual | E173: 0 | F173: 1409 | G173: -202486 | H173: 202486 | J173: 0 | K173: 0 | L173: 0 | M173: Apr-28 | N173: -202486
A174: 139 | B174: May-28 | C174: Actual | E174: 0 | F174: 0 | G174: -202486 | H174: 0 | J174: 0 | K174: 0 | L174: 0 | M174: May-28 | N174: -202486
D175: =SUM(D12:D174) -> 16256244 | E175: =SUM(E12:E174) -> -1097279 | F175: =SUM(F12:F174) -> 9139355 | G175: =SUM(G12:G174) -> -24298320 | J175: =SUM(J12:J174) -> 942535 | K175: -942535 | N175: =SUM(N12:N174) -> -25240855
B178: Monthly Amortization Amount | N178: =ROUND(VLOOKUP(TEXT(EDATE(ExpMonth,2),"mmm-yy"),AROamortization,2,FALSE),0) -> -524301

Sheet FORM 2.30
G1: ES FORM 2.30
B3: =Company -> DUKE ENERGY KENTUCKY, INC.
B4: =Title -> ENVIRONMENTAL SURCHARGE REPORT
B6: Inventory and Expense of Emission Allowances
B8: ="For the Expense Month Ending "&TEXT(ExpMonth,"mmmm yyyy") -> For the Expense Month Ending August 2018
B11: Total SO2 and NOx Emission Allowances
C12: Beginning | D12: Allocations / | G12: Ending
C13: Inventory | D13: Purchases | E13: Utilized | F13: Sold | G13: Inventory
B15: SO2 Allowances - Acid Rain Program (a)
B16: Quantity | C16: 111128 | E16: 207 | F16: 0 | G16: =C16+D16-E16-F16 -> 110921
B17: Dollars | C17: 17299.55 | D17: 0 | E17: 33.12 | F17: 0 | G17: =C17+D17-E17-F17 -> 17266.43
B18: $/Allowance | C18: =IF(C16=0,0,ROUND(C17/C16,6)) -> 0.155672 | D18: =IF(D16=0,0,ROUND(D17/D16,6)) -> 0 | E18: =IF(E16=0,0,ROUND(E17/E16,6)) -> 0.16 | F18: =IF(F16=0,0,ROUND(F17/F16,6)) -> 0 | G18: =IF(G16=0,0,ROUND(G17/G16,6)) -> 0.155664
B20: NOx Allowances - Annual
B21: Quantity | C21: 5708 | E21: 227 | F21: 0 | G21: =C21+D21-E21-F21 -> 5481
B22: Dollars | C22: 5342.23 | D22: 0 | E22: 213.38 | F22: 0 | G22: =C22+D22-E22-F22 -> 5128.85
B23: $/Allowance | C23: =IF(C21=0,0,ROUND(C22/C21,6)) -> 0.93592 | D23: =IF(D21=0,0,ROUND(D22/D21,6)) -> 0 | E23: =IF(E21=0,0,ROUND(E22/E21,6)) -> 0.94 | F23: =IF(F21=0,0,ROUND(F22/F21,6)) -> 0 | G23: =IF(G21=0,0,ROUND(G22/G21,6)) -> 0.935751
B25: NOx Allowances - Seasonal
B26: Quantity | C26: 1149 | E26: 227 | F26: 0 | G26: =C26+D26-E26-F26 -> 922
B27: Dollars | C27: 5884.95 | D27: 0 | E27: 1162.24 | F27: 0 | G27: =C27+D27-E27-F27 -> 4722.71
B28: $/Allowance | C28: =IF(C26=0,0,ROUND(C27/C26,6)) -> 5.121802 | D28: =IF(D26=0,0,ROUND(D27/D26,6)) -> 0 | E28: =IF(E26=0,0,ROUND(E27/E26,6)) -> 5.12 | F28: =IF(F26=0,0,ROUND(F27/F26,6)) -> 0 | G28: =IF(G26=0,0,ROUND(G27/G26,6)) -> 5.122245
B30: Total Emission Allowances
B31: Quantity | C31: =C16+C21+C26 -> 117985 | D31: 0 | E31: 661 | F31: 0 | G31: 117324
B32: Dollars | C32: 28526.73 | D32: 0 | E32: =E17+E22+E27 -> 1408.74 | F32: 0 | G32: 27117.99
B34: (a) Note: The SO2 Allowances exclude the CSSO2G1 Program Allowances as there is no dollar value associated with this program inventory. Thus, there is no expense booked to the ledger as a result of the program.

Sheet FORM 2.50
I1: ES FORM 2.50
A3: =Company -> DUKE ENERGY KENTUCKY, INC.
A4: =Title -> ENVIRONMENTAL SURCHARGE REPORT
A6: Environmental Reagent Expenses
A8: ="For the Expense Month of "&TEXT(ExpMonth,"mmmm yyyy") -> For the Expense Month of August 2018
A11: Line | E11: Account | G11: East Bend
A12: No. | C12: Expense Type | E12: Number | G12: Unit 2 | I12: Total
A14: 1 | C14: Ammonia | E14: 502020 | G14: 50645 | I14: =G14 -> 50645
A15: =A14+1 -> 2 | C15: Lime | E15: 502040 | G15: 1154185 | I15: =G15 -> 1154185
A16: =A15+1 -> 3 | C16: Hydrated Lime | E16: 502040 | G16: 73798 | I16: 73798
A18: 4 | C18: Total | G18: =SUM(G14:G16) -> 1278628 | I18: =SUM(I14:I16) -> 1278628

Sheet FORM 3.00
H1: ES FORM 3.00
B3: =Company -> DUKE ENERGY KENTUCKY, INC.
B4: =Title -> ENVIRONMENTAL SURCHARGE REPORT
B6: Monthly Average Revenue Computation of R(m) for Residential and Non-Residential Customers
B8: ="For the Expense Month of "&TEXT(ExpMonth,"mmmm yyyy") -> For the Expense Month of August 2018
K10: Residential = RVCL 0
B11: Residential - Kentucky Jurisdictional Revenues
B12: (1) | C12: (2) | D12: (3) | E12: (4) | F12: (5) | G12: (6) | K12: (3) | L12: (4)
G13: Total
F14: Environmental | G14: Excluding | K14: Base Rate | L14: Fuel
C15: Total | F15: Surcharge | G15: Environmental | K15: Fuel | L15: Clause
B16: Month | C16: Revenues | F16: Revenues | G16: Surcharge | K16: Component | L16: Revenues
G17: (2) - (5)
B19: =EDATE(ExpMonth,-11) -> 2017-09-01 | C19: =ROUND(SUM(IF(RVCLS=0,IF(BillPeriod=$B$19,TotRev))),0) -> 10036825 | F19: =ROUND(SUM(IF(RVCLS=0,IF(BillPeriod=$B$19,ESM))),0) -> 0 | G19: =C19-F19 -> 10036825 | K19: =ROUND(SUM(IF(RVCLS=0,IF(BillPeriod=B19,BaseFuel))),0) -> 2766046 | L19: =ROUND(SUM(IF(RVCLS=0,IF(BillPeriod=B19,RiderFAC))),0) -> -164082
B20: =EDATE(ExpMonth,-10) -> 2017-10-01 | C20: =ROUND(SUM(IF(RVCLS=0,IF(BillPeriod=$B$20,TotRev))),0) -> 8738582 | F20: =ROUND(SUM(IF(RVCLS=0,IF(BillPeriod=$B$20,ESM))),0) -> 0 | G20: 8738582 | K20: =ROUND(SUM(IF(RVCLS=0,IF(BillPeriod=B20,BaseFuel))),0) -> 2503044 | L20: =ROUND(SUM(IF(RVCLS=0,IF(BillPeriod=B20,RiderFAC))),0) -> -548638
B21: =EDATE(ExpMonth,-9) -> 2017-11-01 | C21: =ROUND(SUM(IF(RVCLS=0,IF(BillPeriod=$B$21,TotRev))),0) -> 8584302 | F21: =ROUND(SUM(IF(RVCLS=0,IF(BillPeriod=$B$21,ESM))),0) -> 0 | G21: 8584302 | K21: =ROUND(SUM(IF(RVCLS=0,IF(BillPeriod=B21,BaseFuel))),0) -> 2281980 | L21: =ROUND(SUM(IF(RVCLS=0,IF(BillPeriod=B21,RiderFAC))),0) -> 68740
B22: =EDATE(ExpMonth,-8) -> 2017-12-01 | C22: =ROUND(SUM(IF(RVCLS=0,IF(BillPeriod=$B$22,TotRev))),0) -> 10686318 | F22: =ROUND(SUM(IF(RVCLS=0,IF(BillPeriod=$B$22,ESM))),0) -> 0 | G22: 10686318 | K22: =ROUND(SUM(IF(RVCLS=0,IF(BillPeriod=B22,BaseFuel))),0) -> 2938285 | L22: =ROUND(SUM(IF(RVCLS=0,IF(BillPeriod=B22,RiderFAC))),0) -> -109117
B23: =EDATE(ExpMonth,-7) -> 2018-01-01 | C23: =ROUND(SUM(IF(RVCLS=0,IF(BillPeriod=$B$23,TotRev))),0) -> 16073289 | F23: =ROUND(SUM(IF(RVCLS=0,IF(BillPeriod=$B$23,ESM))),0) -> 0 | G23: 16073289 | K23: =ROUND(SUM(IF(RVCLS=0,IF(BillPeriod=B23,BaseFuel))),0) -> 4323072 | L23: =ROUND(SUM(IF(RVCLS=0,IF(BillPeriod=B23,RiderFAC))),0) -> 457047
B24: =EDATE(ExpMonth,-6) -> 2018-02-01 | C24: =ROUND(SUM(IF(RVCLS=0,IF(BillPeriod=$B$24,TotRev))),0) -> 11744958 | F24: =ROUND(SUM(IF(RVCLS=0,IF(BillPeriod=$B$24,ESM))),0) -> 0 | G24: 11744958 | K24: =ROUND(SUM(IF(RVCLS=0,IF(BillPeriod=B24,BaseFuel))),0) -> 3259164 | L24: =ROUND(SUM(IF(RVCLS=0,IF(BillPeriod=B24,RiderFAC))),0) -> 24178
B25: =EDATE(ExpMonth,-5) -> 2018-03-01 | C25: =ROUND(SUM(IF(RVCLS=0,IF(BillPeriod=$B$25,TotRev))),0) -> 9705373 | F25: =ROUND(SUM(IF(RVCLS=0,IF(BillPeriod=$B$25,ESM))),0) -> 0 | G25: 9705373 | K25: =ROUND(SUM(IF(RVCLS=0,IF(BillPeriod=B25,BaseFuel))),0) -> 2676311 | L25: =ROUND(SUM(IF(RVCLS=0,IF(BillPeriod=B25,RiderFAC))),0) -> 431877
B26: =EDATE(ExpMonth,-4) -> 2018-04-01 | C26: =ROUND(SUM(IF(RVCLS=0,IF(BillPeriod=$B$26,TotRev))),0) -> 9192616 | F26: =ROUND(SUM(IF(RVCLS=0,IF(BillPeriod=$B$26,ESM))),0) -> 0 | G26: 9192616 | K26: =ROUND(SUM(IF(RVCLS=0,IF(BillPeriod=B26,BaseFuel))),0) -> 2613999 | L26: =ROUND(SUM(IF(RVCLS=0,IF(BillPeriod=B26,RiderFAC))),0) -> 114337
B27: =EDATE(ExpMonth,-3) -> 2018-05-01 | C27: =ROUND(SUM(IF(RVCLS=0,IF(BillPeriod=$B$27,TotRev))),0) -> 9225511 | F27: =ROUND(SUM(IF(RVCLS=0,IF(BillPeriod=$B$27,ESM))),0) -> 0 | G27: 9225511 | K27: =ROUND(SUM(IF(RVCLS=0,IF(BillPeriod=B27,BaseFuel))),0) -> 2263987 | L27: =ROUND(SUM(IF(RVCLS=0,IF(BillPeriod=B27,RiderFAC))),0) -> 1058577
B28: =EDATE(ExpMonth,-2) -> 2018-06-01 | C28: =ROUND(SUM(IF(RVCLS=0,IF(BillPeriod=$B$28,TotRev))),0) -> 13041663 | F28: =ROUND(SUM(IF(RVCLS=0,IF(BillPeriod=$B$28,ESM))),0) -> 298777 | G28: 12742886 | K28: =ROUND(SUM(IF(RVCLS=0,IF(BillPeriod=B28,BaseFuel))),0) -> 3251112 | L28: =ROUND(SUM(IF(RVCLS=0,IF(BillPeriod=B28,RiderFAC))),0) -> 1402488
B29: =EDATE(ExpMonth,-1) -> 2018-07-01 | C29: =ROUND(SUM(IF(RVCLS=0,IF(BillPeriod=$B$29,TotRev))),0) -> 15332757 | F29: =ROUND(SUM(IF(RVCLS=0,IF(BillPeriod=$B$29,ESM))),0) -> 383577 | G29: 14949180 | K29: =ROUND(SUM(IF(RVCLS=0,IF(BillPeriod=B29,BaseFuel))),0) -> 3770604 | L29: =ROUND(SUM(IF(RVCLS=0,IF(BillPeriod=B29,RiderFAC))),0) -> 2012795
B30: =ExpMonth -> 2018-08-01 | C30: =ROUND(SUM(IF(RVCLS=0,IF(BillPeriod=$B$30,TotRev))),0) -> 12716657 | F30: =ROUND(SUM(IF(RVCLS=0,IF(BillPeriod=$B$30,ESM))),0) -> 642457 | G30: 12074200 | K30: =ROUND(SUM(IF(RVCLS=0,IF(BillPeriod=B30,BaseFuel))),0) -> 3363068 | L30: =ROUND(SUM(IF(RVCLS=0,IF(BillPeriod=B30,RiderFAC))),0) -> 379161
B32: Average Monthly Residential Revenues, Excluding Environmental Surcharge, for 12 Months Ending Current Expense Month | G32: =ROUND(AVERAGE(G19:G30),0) -> 11146170
B34: Average Total Kentucky Revenues, Excluding Environmental Surcharge, for 12 Months Ending Current Expense Month | G34: =G32+G60 -> 27102113
B36: Residential Revenues as a Percentage of Total Revenues for 12 Months Ending with the Current Expense Month | G36: =IF(G34=0,0,ROUND(G32/G34,4)) -> 0.4113
B39: Non-Residential - Kentucky Jurisdictional Revenues | K39: Non-Residential = All Other RVCLS
B40: (1) | C40: (2) | D40: (3) | E40: (4) | F40: (5) | G40: (6) | H40: (7)
G41: Total
D42: Base Rate | E42: Fuel | F42: Environmental | G42: Excluding | H42: Total
C43: Total | D43: Fuel | E43: Clause | F43: Surcharge | G43: Environmental | H43: Non-Fuel
B44: Month | C44: Revenues | D44: Component | E44: Revenues | F44: Revenues | G44: Surcharge | H44: Revenue
G45: (2) - (5) | H45: (6) - (3) - (4)
B47: =EDATE(ExpMonth,-11) -> 2017-09-01 | C47: =ROUND(SUM(IF(BillPeriod=$B$47,TotRev))-C19,0) -> 15903029 | D47: =ROUND(SUM(IF(BillPeriod=$B$47,BaseFuel))-K19,0) -> 5373508 | E47: =ROUND(SUM(IF(BillPeriod=$B$47,RiderFAC))-L19,0) -> -316965 | F47: =ROUND(SUM(IF(BillPeriod=$B$47,ESM))-F19,0) -> 0 | G47: =C47-F47 -> 15903029 | H47: =G47-D47-E47 -> 10846486
B48: =EDATE(ExpMonth,-10) -> 2017-10-01 | C48: =ROUND(SUM(IF(BillPeriod=$B$48,TotRev))-C20,0) -> 14064282 | D48: =ROUND(SUM(IF(BillPeriod=$B$48,BaseFuel))-K20,0) -> 5004912 | E48: =ROUND(SUM(IF(BillPeriod=$B$48,RiderFAC))-L20,0) -> -1086872 | F48: =ROUND(SUM(IF(BillPeriod=$B$48,ESM))-F20,0) -> 0 | G48: 14064282 | H48: =G48-D48-E48 -> 10146242
B49: =EDATE(ExpMonth,-9) -> 2017-11-01 | C49: =ROUND(SUM(IF(BillPeriod=$B$49,TotRev))-C21,0) -> 14457057 | D49: =ROUND(SUM(IF(BillPeriod=$B$49,BaseFuel))-K21,0) -> 4776618 | E49: =ROUND(SUM(IF(BillPeriod=$B$49,RiderFAC))-L21,0) -> 92796 | F49: =ROUND(SUM(IF(BillPeriod=$B$49,ESM))-F21,0) -> 0 | G49: 14457057 | H49: 9587643
B50: =EDATE(ExpMonth,-8) -> 2017-12-01 | C50: =ROUND(SUM(IF(BillPeriod=$B$50,TotRev))-C22,0) -> 14438593 | D50: =ROUND(SUM(IF(BillPeriod=$B$50,BaseFuel))-K22,0) -> 4921948 | E50: =ROUND(SUM(IF(BillPeriod=$B$50,RiderFAC))-L22,0) -> -172877 | F50: =ROUND(SUM(IF(BillPeriod=$B$50,ESM))-F22,0) -> 0 | G50: 14438593 | H50: 9689522
B51: =EDATE(ExpMonth,-7) -> 2018-01-01 | C51: =ROUND(SUM(IF(BillPeriod=$B$51,TotRev))-C23,0) -> 16089643 | D51: =ROUND(SUM(IF(BillPeriod=$B$51,BaseFuel))-K23,0) -> 5218344 | E51: =ROUND(SUM(IF(BillPeriod=$B$51,RiderFAC))-L23,0) -> 546874 | F51: =ROUND(SUM(IF(BillPeriod=$B$51,ESM))-F23,0) -> 0 | G51: 16089643 | H51: 10324425
B52: =EDATE(ExpMonth,-6) -> 2018-02-01 | C52: =ROUND(SUM(IF(BillPeriod=$B$52,TotRev))-C24,0) -> 14714026 | D52: =ROUND(SUM(IF(BillPeriod=$B$52,BaseFuel))-K24,0) -> 4857707 | E52: =ROUND(SUM(IF(BillPeriod=$B$52,RiderFAC))-L24,0) -> 37207 | F52: =ROUND(SUM(IF(BillPeriod=$B$52,ESM))-F24,0) -> 0 | G52: 14714026 | H52: 9819112
B53: =EDATE(ExpMonth,-5) -> 2018-03-01 | C53: =ROUND(SUM(IF(BillPeriod=$B$53,TotRev))-C25,0) -> 14704676 | D53: =ROUND(SUM(IF(BillPeriod=$B$53,BaseFuel))-K25,0) -> 4684206 | E53: =ROUND(SUM(IF(BillPeriod=$B$53,RiderFAC))-L25,0) -> 731789 | F53: =ROUND(SUM(IF(BillPeriod=$B$53,ESM))-F25,0) -> 0 | G53: 14704676 | H53: 9288681
B54: =EDATE(ExpMonth,-4) -> 2018-04-01 | C54: =ROUND(SUM(IF(BillPeriod=$B$54,TotRev))-C26,0) -> 14331036 | D54: =ROUND(SUM(IF(BillPeriod=$B$54,BaseFuel))-K26,0) -> 4767544 | E54: =ROUND(SUM(IF(BillPeriod=$B$54,RiderFAC))-L26,0) -> 200332 | F54: =ROUND(SUM(IF(BillPeriod=$B$54,ESM))-F26,0) -> 0 | G54: 14331036 | H54: 9363160
B55: =EDATE(ExpMonth,-3) -> 2018-05-01 | C55: =ROUND(SUM(IF(BillPeriod=$B$55,TotRev))-C27,0) -> 16761608 | D55: =ROUND(SUM(IF(BillPeriod=$B$55,BaseFuel))-K27,0) -> 4821687 | E55: =ROUND(SUM(IF(BillPeriod=$B$55,RiderFAC))-L27,0) -> 2218031 | F55: =ROUND(SUM(IF(BillPeriod=$B$55,ESM))-F27,0) -> 0 | G55: 16761608 | H55: 9721890
B56: =EDATE(ExpMonth,-2) -> 2018-06-01 | C56: =ROUND(SUM(IF(BillPeriod=$B$56,TotRev))-C28,0) -> 19350865 | D56: =ROUND(SUM(IF(BillPeriod=$B$56,BaseFuel))-K28,0) -> 5564309 | E56: =ROUND(SUM(IF(BillPeriod=$B$56,RiderFAC))-L28,0) -> 2385574 | F56: =ROUND(SUM(IF(BillPeriod=$B$56,ESM))-F28,0) -> 433158 | G56: 18917707 | H56: 10967824
B57: =EDATE(ExpMonth,-1) -> 2018-07-01 | C57: =ROUND(SUM(IF(BillPeriod=$B$57,TotRev))-C29,0) -> 20520965 | D57: =ROUND(SUM(IF(BillPeriod=$B$57,BaseFuel))-K29,0) -> 5713914 | E57: =ROUND(SUM(IF(BillPeriod=$B$57,RiderFAC))-L29,0) -> 3024833 | F57: =ROUND(SUM(IF(BillPeriod=$B$57,ESM))-F29,0) -> 514138 | G57: 20006827 | H57: 11268080
B58: =ExpMonth -> 2018-08-01 | C58: =ROUND(SUM(IF(BillPeriod=$B$58,TotRev))-C30,0) -> 17980988 | D58: =ROUND(SUM(IF(BillPeriod=$B$58,BaseFuel))-K30,0) -> 5529498 | E58: =ROUND(SUM(IF(BillPeriod=$B$58,RiderFAC))-L30,0) -> 628882 | F58: =ROUND(SUM(IF(BillPeriod=$B$58,ESM))-F30,0) -> 898161 | G58: 17082827 | H58: 10924447
B60: Average Monthly Non-Residential Revenues, Excluding Environmental Surcharge, for 12 Months Ending Current Expense Month | G60: =ROUND(AVERAGE(G47:G58),0) -> 15955943 | H60: =ROUND(AVERAGE(H47:H58),0) -> 10162293
B62: Average Total Kentucky Revenues, Excluding Environmental Surcharge, for 12 Months Ending Current Expense Month | G62: =G32+G60 -> 27102113
B64: Non-Residential Revenues as a Percentage of Total Revenues for 12 Months Ending with the Current Expense Month | G64: =IF(G62=0,0,ROUND(G60/G62,4)) -> 0.5887

Sheet Revenue
A1: Source: MW_RAC_044
C2: Bill
A3: Class | B3: Revcls | C3: Period | D3: Unbilled | E3: Billed | F3: Total | G3: BaseFuel | H3: DSM | I3: FAC | J3: PSM | K3: ESM | L3: BaseRev | M3: TotalBilled
A4: Residential | B4: 0 | C4: 2017-05-01 | D4: 784453 | E4: 7508315 | F4: =D4+E4 -> 8292768 | G4: 2588234 | H4: 706329 | I4: -801494 | J4: -135356 | K4: 0 | L4: 5150602 | M4: =SUM(G4:L4) -> 7508315 | N4: =E4=M4 -> TRUE
A5: Commercial | B5: 2 | C5: 2017-05-01 | D5: 223617 | E5: 8137894 | F5: =D5+E5 -> 8361511 | G5: 3344724 | H5: 295277 | I5: -1037055 | J5: -175342 | K5: 0 | L5: 5710290 | M5: =SUM(G5:L5) -> 8137894 | N5: TRUE
A6: Industrial | B6: 4 | C6: 2017-05-01 | D6: 162141 | E6: 3929156 | F6: =D6+E6 -> 4091297 | G6: 1932761 | H6: 132522 | I6: -590393 | J6: -101113 | K6: 0 | L6: 2555379 | M6: 3929156 | N6: TRUE
A7: Lighting | B7: 15 | C7: 2017-05-01 | D7: 0 | E7: 127100 | F7: 127100 | G7: 36136 | H7: 260 | I7: -11195 | J7: -1886 | K7: 0 | L7: 103785 | M7: 127100 | N7: TRUE
A8: OPA | B8: 16 | C8: 2017-05-01 | D8: 63810 | E8: 1560496 | F8: 1624306 | G8: 665147 | H8: 50452 | I8: -205394 | J8: -34716 | K8: 0 | L8: =1085006+1 -> 1085007 | M8: 1560496 | N8: TRUE
A9: Residential | B9: 0 | C9: 2017-06-01 | D9: 940089 | E9: 9659183 | F9: 10599272 | G9: 3378933 | H9: 923266 | I9: -1029257 | J9: -174137 | K9: 0 | L9: 6560378 | M9: 9659183 | N9: TRUE
A10: Commercial | B10: 2 | C10: 2017-06-01 | D10: 565911 | E10: 9006447 | F10: 9572358 | G10: 3746715 | H10: 331662 | I10: -1143025 | J10: -193511 | K10: 0 | L10: =6264608-2 -> 6264606 | M10: 9006447 | N10: TRUE
A11: Industrial | B11: 4 | C11: 2017-06-01 | D11: 278841 | E11: 4218650 | F11: 4497491 | G11: 2014732 | H11: 139633 | I11: -601392 | J11: -103795 | K11: 0 | L11: =2769473-1 -> 2769472 | M11: 4218650 | N11: TRUE
A12: Lighting | B12: 15 | C12: 2017-06-01 | D12: 0 | E12: 119193 | F12: 119193 | G12: 33812 | H12: 235 | I12: -10337 | J12: -1739 | K12: 0 | L12: 97222 | M12: 119193 | N12: TRUE
A13: OPA | B13: 16 | C13: 2017-06-01 | D13: 115294 | E13: 1506064 | F13: 1621358 | G13: 602156 | H13: 45082 | I13: -189778 | J13: -31869 | K13: 0 | L13: =1080472+1 -> 1080473 | M13: 1506064 | N13: TRUE
A14: Residential | B14: 0 | C14: 2017-07-01 | D14: 1301409 | E14: 12661898 | F14: 13963307 | G14: 4176245 | H14: 1141439 | I14: -415742 | J14: -215265 | K14: 0 | L14: =7975220+1 -> 7975221 | M14: 12661898 | N14: TRUE
A15: Commercial | B15: 2 | C15: 2017-07-01 | D15: 224801 | E15: 10326875 | F15: 10551676 | G15: 3991980 | H15: 353441 | I15: -398582 | J15: -206002 | K15: 0 | L15: 6586038 | M15: 10326875 | N15: TRUE
A16: Industrial | B16: 4 | C16: 2017-07-01 | D16: 38403 | E16: 4666134 | F16: 4704537 | G16: 2019527 | H16: 140063 | I16: -196673 | J16: -104031 | K16: 0 | L16: 2807248 | M16: 4666134 | N16: TRUE
A17: Lighting | B17: 15 | C17: 2017-07-01 | D17: 0 | E17: 142099 | F17: 142099 | G17: 38253 | H17: 253 | I17: -4277 | J17: -1970 | K17: 0 | L17: 109840 | M17: 142099 | N17: TRUE
A18: OPA | B18: 16 | C18: 2017-07-01 | D18: 30351 | E18: 1922746 | F18: 1953097 | G18: 748931 | H18: 57734 | I18: -79172 | J18: -37665 | K18: 0 | L18: 1232918 | M18: 1922746 | N18: TRUE
A19: Residential | B19: 0 | C19: 2017-08-01 | D19: -948589 | E19: 12185554 | F19: 11236965 | G19: 4074108 | H19: 1113648 | I19: -587185 | J19: -210043 | K19: 0 | L19: =7795025+1 -> 7795026 | M19: 12185554 | N19: TRUE
A20: Commercial | B20: 2 | C20: 2017-08-01 | D20: 56940 | E20: 10011077 | F20: 10068017 | G20: 3897817 | H20: 345569 | I20: -563132 | J20: -201306 | K20: 0 | L20: 6532129 | M20: 10011077 | N20: TRUE
A21: Industrial | B21: 4 | C21: 2017-08-01 | D21: 108915 | E21: 4705420 | F21: 4814335 | G21: 2089197 | H21: 144525 | I21: -294245 | J21: -107611 | K21: 0 | L21: 2873554 | M21: 4705420 | N21: TRUE
A22: Lighting | B22: 15 | C22: 2017-08-01 | D22: 0 | E22: 132171 | F22: 132171 | G22: 35841 | H22: 234 | I22: -5180 | J22: -1845 | K22: 0 | L22: =103120+1 -> 103121 | M22: 132171 | N22: TRUE
A23: OPA | B23: 16 | C23: 2017-08-01 | D23: 44537 | E23: 1825858 | F23: 1870395 | G23: 725160 | H23: 55760 | I23: -104233 | J23: -37262 | K23: 0 | L23: =1186432+1 -> 1186433 | M23: 1825858 | N23: TRUE
A24: Residential | B24: 0 | C24: 2017-09-01 | D24: -443981 | E24: 10036825 | F24: 9592844 | G24: 2766046 | H24: 923855 | I24: -164082 | J24: -52907 | K24: 0 | L24: =6563912+1 -> 6563913 | M24: 10036825 | N24: TRUE
A25: Commercial | B25: 2 | C25: 2017-09-01 | D25: -385833 | E25: 9450649 | F25: 9064816 | G25: 3075967 | H25: 332194 | I25: -183449 | J25: -59281 | K25: 0 | L25: =6285217+1 -> 6285218 | M25: 9450649 | N25: TRUE
A26: Industrial | B26: 4 | C26: 2017-09-01 | D26: -252900 | E26: 4518823 | F26: 4265923 | G26: 1679520 | H26: 142197 | I26: -96993 | J26: -32054 | K26: 0 | L26: 2826153 | M26: 4518823 | N26: TRUE
A27: Lighting | B27: 15 | C27: 2017-09-01 | D27: 0 | E27: 131617 | F27: 131617 | G27: 29778 | H27: 284 | I27: -1765 | J27: -548 | K27: 0 | L27: 103868 | M27: 131617 | N27: TRUE
A28: OPA | B28: 16 | C28: 2017-09-01 | D28: -114713 | E28: 1801940 | F28: 1687227 | G28: 588243 | H28: 55416 | I28: -34758 | J28: -11210 | K28: 0 | L28: 1204249 | M28: 1801940 | N28: TRUE
A29: Residential | B29: 0 | C29: 2017-10-01 | D29: -705141 | E29: 8738582 | F29: 8033441 | G29: 2503044 | H29: 835843 | I29: -548638 | J29: -47728 | K29: 0 | L29: =5996060+1 -> 5996061 | M29: 8738582 | N29: TRUE
A30: Commercial | B30: 2 | C30: 2017-10-01 | D30: 100478 | E30: 8337514 | F30: 8437992 | G30: 2821070 | H30: 305154 | I30: -617548 | J30: -54006 | K30: 0 | L30: =5882843+1 -> 5882844 | M30: 8337514 | N30: TRUE
A31: Industrial | B31: 4 | C31: 2017-10-01 | D31: 202345 | E31: 3986829 | F31: 4189174 | G31: 1597329 | H31: 134004 | I31: -341465 | J31: -30508 | K31: 0 | L31: =2627468+1 -> 2627469 | M31: 3986829 | N31: TRUE
A32: Lighting | B32: 15 | C32: 2017-10-01 | D32: 0 | E32: 127281 | F32: 127281 | G32: 29928 | H32: 300 | I32: -6562 | J32: -551 | K32: 0 | L32: 104166 | M32: 127281 | N32: TRUE
A33: OPA | B33: 16 | C33: 2017-10-01 | D33: 102272 | E33: 1612658 | F33: 1714930 | G33: 556585 | H33: 52319 | I33: -121297 | J33: -10475 | K33: 0 | L33: =1135527-1 -> 1135526 | M33: 1612658 | N33: TRUE
A34: Residential | B34: 0 | C34: 2017-11-01 | D34: 1280257 | E34: 8584302 | F34: 9864559 | G34: 2281980 | H34: 761901 | I34: 68740 | J34: -43566 | K34: 0 | L34: 5515247 | M34: 8584302 | N34: TRUE
A35: Commercial | B35: 2 | C35: 2017-11-01 | D35: 62729 | E35: 8455289 | F35: 8518018 | G35: 2634821 | H35: 284719 | I35: 51495 | J35: -50435 | K35: 0 | L35: 5534689 | M35: 8455289 | N35: TRUE
A36: Industrial | B36: 4 | C36: 2017-11-01 | D36: -77061 | E36: 4226492 | F36: 4149431 | G36: 1570102 | H36: 129885 | I36: 30093 | J36: -29995 | K36: 0 | L36: 2526407 | M36: 4226492 | N36: TRUE
A37: Lighting | B37: 15 | C37: 2017-11-01 | D37: 0 | E37: 135387 | F37: 135387 | G37: 30389 | H37: 349 | I37: 573 | J37: -560 | K37: 0 | L37: 104636 | M37: 135387 | N37: TRUE
A38: OPA | B38: 16 | C38: 2017-11-01 | D38: -2477 | E38: 1639889 | F38: 1637412 | G38: 541306 | H38: 49810 | I38: 10635 | J38: -10302 | K38: 0 | L38: 1048440 | M38: 1639889 | N38: TRUE
A39: Residential | B39: 0 | C39: 2017-12-01 | D39: 2183729 | E39: 10686318 | F39: 12870047 | G39: 2938285 | H39: 981309 | I39: -109117 | J39: -60937 | K39: 0 | L39: =6936777+1 -> 6936778 | M39: 10686318 | N39: TRUE
A40: Commercial | B40: 2 | C40: 2017-12-01 | D40: 144604 | E40: 8577566 | F40: 8722170 | G40: 2747849 | H40: 297692 | I40: -96837 | J40: -56814 | K40: 0 | L40: =5685675+1 -> 5685676 | M40: 8577566 | N40: TRUE
A41: Industrial | B41: 4 | C41: 2017-12-01 | D41: -50660 | E41: 4176862 | F41: 4126202 | G41: 1612481 | H41: 134777 | I41: -56195 | J41: -33300 | K41: 0 | L41: =2519098+1 -> 2519099 | M41: 4176862 | N41: TRUE
A42: Lighting | B42: 15 | C42: 2017-12-01 | D42: 0 | E42: 133921 | F42: 133921 | G42: 30482 | H42: 366 | I42: -1098 | J42: -607 | K42: 0 | L42: =104779-1 -> 104778 | M42: 133921 | N42: TRUE
A43: OPA | B43: 16 | C43: 2017-12-01 | D43: 14000 | E43: 1550244 | F43: 1564244 | G43: 531136 | H43: 48848 | I43: -18747 | J43: -10928 | K43: 0 | L43: 999935 | M43: 1550244 | N43: TRUE
A44: Residential | B44: 0 | C44: 2018-01-01 | D44: -2009512 | E44: 16073289 | F44: 14063777 | G44: 4323072 | H44: 1444510 | I44: 457047 | J44: -89396 | K44: 0 | L44: =9938055+1 -> 9938056 | M44: 16073289 | N44: TRUE
A45: Commercial | B45: 2 | C45: 2018-01-01 | D45: -685804 | E45: 9911332 | F45: 9225528 | G45: 3072865 | H45: 334780 | I45: 323406 | J45: -63777 | K45: 0 | L45: =6244060-2 -> 6244058 | M45: 9911332 | N45: TRUE
A46: Industrial | B46: 4 | C46: 2018-01-01 | D46: -344589 | E46: 4281321 | F46: 3936732 | G46: 1534189 | H46: 128466 | I46: 158615 | J46: -31692 | K46: 0 | L46: 2491743 | M46: 4281321 | N46: TRUE
A47: Lighting | B47: 15 | C47: 2018-01-01 | D47: 0 | E47: 114155 | F47: 114155 | G47: 24356 | H47: 389 | I47: 3447 | J47: -485 | K47: 0 | L47: =86447+1 -> 86448 | M47: 114155 | N47: TRUE
A48: OPA | B48: 16 | C48: 2018-01-01 | D48: -204643 | E48: 1782835 | F48: 1578192 | G48: 586934 | H48: 53911 | I48: 61406 | J48: -12140 | K48: 0 | L48: =1092723+1 -> 1092724 | M48: 1782835 | N48: TRUE
A49: Residential | B49: 0 | C49: 2018-02-01 | D49: -604918 | E49: 11744958 | F49: 11140040 | G49: 3259164 | H49: 894041 | I49: 24178 | J49: -67395 | K49: 0 | L49: 7634970 | M49: 11744958 | N49: TRUE
A50: Commercial | B50: 2 | C50: 2018-02-01 | D50: -198544 | E50: 8825962 | F50: 8627418 | G50: 2751166 | H50: 296781 | I50: 21324 | J50: -57105 | K50: 0 | L50: 5813796 | M50: 8825962 | N50: TRUE
A51: Industrial | B51: 4 | C51: 2018-02-01 | D51: -115938 | E51: 4105599 | F51: 3989661 | G51: 1525627 | H51: 128601 | I51: 11637 | J51: -31487 | K51: 0 | L51: 2471221 | M51: 4105599 | N51: TRUE
A52: Lighting | B52: 15 | C52: 2018-02-01 | D52: 0 | E52: 159341 | F52: 159341 | G52: 36739 | H52: 351 | I52: 18 | J52: -731 | K52: 0 | L52: 122964 | M52: 159341 | N52: TRUE
A53: OPA | B53: 16 | C53: 2018-02-01 | D53: -47975 | E53: 1623124 | F53: 1575149 | G53: 544175 | H53: 49820 | I53: 4228 | J53: -11176 | K53: 0 | L53: 1036077 | M53: 1623124 | N53: TRUE
A54: Residential | B54: 0 | C54: 2018-03-01 | D54: -1147167 | E54: 9705373 | F54: 8558206 | G54: 2676311 | H54: 427276 | I54: 431877 | J54: -202284 | K54: 0 | L54: 6372193 | M54: 9705373 | N54: TRUE
A55: Commercial | B55: 2 | C55: 2018-03-01 | D55: -7895 | E55: 8705679 | F55: 8697784 | G55: 2627513 | H55: 280930 | I55: 413109 | J55: -194792 | K55: 0 | L55: =5578920-1 -> 5578919 | M55: 8705679 | N55: TRUE
A56: Industrial | B56: 4 | C56: 2018-03-01 | D56: 114261 | E56: 4223518 | F56: 4337779 | G56: 1515655 | H56: 126041 | I56: 234195 | J56: -112073 | K56: 0 | L56: 2459700 | M56: 4223518 | N56: TRUE
A57: Lighting | B57: 15 | C57: 2018-03-01 | D57: 0 | E57: 136841 | F57: 136841 | G57: 29960 | H57: 306 | I57: 4713 | J57: -2229 | K57: 0 | L57: =104092-1 -> 104091 | M57: 136841 | N57: TRUE
A58: OPA | B58: 16 | C58: 2018-03-01 | D58: 19951 | E58: 1638638 | F58: 1658589 | G58: 511078 | H58: 46387 | I58: 79772 | J58: -37495 | K58: 0 | L58: =1038895+1 -> 1038896 | M58: 1638638 | N58: TRUE
A59: Residential | B59: 0 | C59: 2018-04-01 | D59: -279968 | E59: 9192616 | F59: 8912648 | G59: 2613999 | H59: 421995 | I59: 114337 | J59: -193872 | K59: 0 | L59: 6236157 | M59: 9192616 | N59: TRUE
A60: Commercial | B60: 2 | C60: 2018-04-01 | D60: 230268 | E60: 8531638 | F60: 8761906 | G60: 2683647 | H60: 286880 | I60: 114054 | J60: -199453 | K60: 0 | L60: =5646509+1 -> 5646510 | M60: 8531638 | N60: TRUE
A61: Industrial | B61: 4 | C61: 2018-04-01 | D61: 174937 | E61: 4072833 | F61: 4247770 | G61: 1527323 | H61: 128368 | I61: 62914 | J61: -113061 | K61: 0 | L61: =2467290-1 -> 2467289 | M61: 4072833 | N61: TRUE
A62: Lighting | B62: 15 | C62: 2018-04-01 | D62: 0 | E62: 132847 | F62: 132847 | G62: 29777 | H62: 291 | I62: 1257 | J62: -2216 | K62: 0 | L62: 103738 | M62: 132847 | N62: TRUE
A63: OPA | B63: 16 | C63: 2018-04-01 | D63: 81786 | E63: 1593718 | F63: 1675504 | G63: 526797 | H63: 47969 | I63: 22107 | J63: -38735 | K63: 0 | L63: =1035581-1 -> 1035580 | M63: 1593718 | N63: TRUE
A64: Residential | B64: 0 | C64: 2018-05-01 | D64: 750139 | E64: 9225511 | F64: 9975650 | G64: 2263987 | H64: 365310 | I64: 1058577 | J64: -168009 | K64: 0 | L64: 5705646 | M64: 9225511 | N64: TRUE
A65: Commercial | B65: 2 | C65: 2018-05-01 | D65: 706147 | E65: 9918317 | F65: 10624464 | G65: 2710151 | H65: 289793 | I65: 1254578 | J65: -201555 | K65: 0 | L65: =5865351-1 -> 5865350 | M65: 9918317 | N65: TRUE
A66: Industrial | B66: 4 | C66: 2018-05-01 | D66: 371605 | E66: 4897146 | F66: 5268751 | G66: 1572561 | H66: 132640 | I66: 714001 | J66: -116393 | K66: 0 | L66: 2594337 | M66: 4897146 | N66: TRUE
A67: Lighting | B67: 15 | C67: 2018-05-01 | D67: 0 | E67: 144432 | F67: 144432 | G67: 29449 | H67: 246 | I67: 13627 | J67: -2192 | K67: 0 | L67: =103301+1 -> 103302 | M67: 144432 | N67: TRUE
A68: OPA | B68: 16 | C68: 2018-05-01 | D68: 176325 | E68: 1801713 | F68: 1978038 | G68: 509526 | H68: 46753 | I68: 235825 | J68: -37719 | K68: 0 | L68: =1047329-1 -> 1047328 | M68: 1801713 | N68: =E68=M68 -> TRUE
A69: Residential | B69: 0 | C69: 2018-06-01 | D69: 792224 | E69: 13041663 | F69: 13833887 | G69: 3251112 | H69: 525305 | I69: 1402488 | J69: -342065 | K69: 298777 | L69: 7906046 | M69: =SUM(G69:L69) -> 13041663 | N69: TRUE
A70: Commercial | B70: 2 | C70: 2018-06-01 | D70: 664391 | E70: 11694570 | F70: =D70+E70 -> 12358961 | G70: 3236512 | H70: 348150 | I70: 1398714 | J70: -341397 | K70: 266511 | L70: 6786080 | M70: 11694570 | N70: TRUE
A71: Industrial | B71: 4 | C71: 2018-06-01 | D71: 58512 | E71: 5408731 | F71: 5467243 | G71: 1721810 | H71: 145464 | I71: 719816 | J71: -178410 | K71: 112445 | L71: =2887607-1 -> 2887606 | M71: 5408731 | N71: TRUE
A72: Lighting | B72: 15 | C72: 2018-06-01 | D72: 0 | E72: 68887 | F72: 68887 | G72: 9294 | H72: 231 | I72: 11078 | J72: -2138 | K72: 3905 | L72: 46517 | M72: 68887 | N72: TRUE
A73: OPA | B73: 16 | C73: 2018-06-01 | D73: 49096 | E73: 2178677 | F73: 2227773 | G73: 596693 | H73: 56070 | I73: 255966 | J73: -62491 | K73: 50297 | L73: 1282142 | M73: 2178677 | N73: TRUE
A74: Residential | B74: 0 | C74: 2018-07-01 | D74: -632639 | E74: 15332757 | F74: 14700118 | G74: 3770604 | H74: 609408 | I74: 2012795 | J74: -396461 | K74: 383577 | L74: =8952835-1 -> 8952834 | M74: 15332757 | N74: TRUE
A75: Commercial | B75: 2 | C75: 2018-07-01 | D75: -476404 | E75: 12461177 | F75: 11984773 | G75: 3353672 | H75: 360558 | I75: 1794869 | J75: -353782 | K75: 318460 | L75: =6987399+1 -> 6987400 | M75: 12461177 | N75: TRUE
A76: Industrial | B76: 4 | C76: 2018-07-01 | D76: -258197 | E76: 5721662 | F76: 5463465 | G76: 1722593 | H76: 146388 | I76: 894974 | J76: -180736 | K76: 135923 | L76: 3002520 | M76: 5721662 | N76: TRUE
A77: Lighting | B77: 15 | C77: 2018-07-01 | D77: 0 | E77: 172506 | F77: 172506 | G77: 38145 | H77: 196 | I77: 15846 | J77: -3448 | K77: 4769 | L77: 116998 | M77: 172506 | N77: TRUE
A78: OPA | B78: 16 | C78: 2018-07-01 | D78: -115052 | E78: 2165620 | F78: 2050568 | G78: 599504 | H78: 55519 | I78: 319144 | J78: -62788 | K78: 54986 | L78: 1199255 | M78: 2165620 | N78: TRUE
A79: Residential | B79: 0 | C79: 2018-08-01 | D79: 398920 | E79: 12716657 | F79: 13115577 | G79: 3363068 | H79: 543940 | I79: 379161 | J79: -353083 | K79: 642457 | L79: 8141114 | M79: 12716657 | N79: TRUE
A80: Commercial | B80: 2 | C80: 2018-08-01 | D80: 459977 | E80: 10818720 | F80: 11278697 | G80: 3181005 | H80: 341751 | I80: 365132 | J80: -335424 | K80: 551990 | L80: =6714267-1 -> 6714266 | M80: 10818720 | N80: TRUE
A81: Industrial | B81: 4 | C81: 2018-08-01 | D81: 179492 | E81: 5095383 | F81: 5274875 | G81: 1728979 | H81: 147747 | I81: 192919 | J81: -181393 | K81: 239261 | L81: =2967869+1 -> 2967870 | M81: 5095383 | N81: TRUE
A82: Lighting | B82: 15 | C82: 2018-08-01 | D82: 0 | E82: 114770 | F82: 114770 | G82: 28872 | H82: 283 | I82: 3438 | J82: -3033 | K82: 8191 | L82: =77020-1 -> 77019 | M82: 114770 | N82: TRUE
A83: OPA | B83: 16 | C83: 2018-08-01 | D83: 91544 | E83: 1952115 | F83: 2043659 | G83: 590642 | H83: 55346 | I83: 67393 | J83: -61801 | K83: 98719 | L83: 1201816 | M83: 1952115 | N83: TRUE
A84: Residential | B84: 0 | F84: 0 | M84: 0 | N84: TRUE
A85: Commercial | B85: 2 | F85: 0 | M85: 0 | N85: TRUE
A86: Industrial | B86: 4 | F86: 0 | M86: 0 | N86: TRUE
A87: Lighting | B87: 15 | F87: 0 | M87: 0 | N87: TRUE
A88: OPA | B88: 16 | F88: 0 | M88: 0 | N88: TRUE
A89: Residential | B89: 0 | F89: 0 | M89: 0 | N89: TRUE
A90: Commercial | B90: 2 | F90: 0 | M90: 0 | N90: TRUE
A91: Industrial | B91: 4 | F91: 0 | M91: 0 | N91: TRUE
A92: Lighting | B92: 15 | F92: 0 | M92: 0 | N92: TRUE
A93: OPA | B93: 16 | F93: 0 | M93: 0 | N93: TRUE
A94: Residential | B94: 0 | F94: 0 | M94: 0 | N94: TRUE
A95: Commercial | B95: 2 | F95: 0 | M95: 0 | N95: TRUE
A96: Industrial | B96: 4 | F96: 0 | M96: 0 | N96: TRUE
A97: Lighting | B97: 15 | F97: 0 | M97: 0 | N97: TRUE
A98: OPA | B98: 16 | F98: 0 | M98: 0 | N98: TRUE
A99: Residential | B99: 0 | F99: 0 | M99: 0 | N99: TRUE
A100: Commercial | B100: 2 | F100: 0 | M100: 0 | N100: TRUE
A101: Industrial | B101: 4 | F101: 0 | M101: 0 | N101: TRUE
A102: Lighting | B102: 15 | F102: 0 | M102: 0 | N102: TRUE
A103: OPA | B103: 16 | F103: 0 | M103: 0 | N103: TRUE
A104: Residential | B104: 0 | F104: 0 | M104: 0 | N104: TRUE
A105: Commercial | B105: 2 | F105: 0 | M105: 0 | N105: TRUE
A106: Industrial | B106: 4 | F106: 0 | M106: 0 | N106: TRUE
A107: Lighting | B107: 15 | F107: 0 | M107: 0 | N107: TRUE
A108: OPA | B108: 16 | F108: 0 | M108: 0 | N108: TRUE
A109: Residential | B109: 0 | F109: 0 | M109: 0 | N109: TRUE
A110: Commercial | B110: 2 | F110: 0 | M110: 0 | N110: TRUE
A111: Industrial | B111: 4 | F111: 0 | M111: 0 | N111: TRUE
A112: Lighting | B112: 15 | F112: 0 | M112: 0 | N112: TRUE
A113: OPA | B113: 16 | F113: 0 | M113: 0 | N113: TRUE
A114: Residential | B114: 0 | F114: 0 | M114: 0 | N114: TRUE
A115: Commercial | B115: 2 | F115: 0 | M115: 0 | N115: TRUE
A116: Industrial | B116: 4 | F116: 0 | M116: 0 | N116: TRUE
A117: Lighting | B117: 15 | F117: 0 | M117: 0 | N117: TRUE
A118: OPA | B118: 16 | F118: 0 | M118: 0 | N118: TRUE
A119: Residential | B119: 0 | F119: 0 | M119: 0 | N119: TRUE
A120: Commercial | B120: 2 | F120: 0 | M120: 0 | N120: TRUE
A121: Industrial | B121: 4 | F121: 0 | M121: 0 | N121: TRUE
A122: Lighting | B122: 15 | F122: 0 | M122: 0 | N122: TRUE
A123: OPA | B123: 16 | F123: 0 | M123: 0 | N123: TRUE
A124: Residential | B124: 0 | F124: 0 | M124: 0 | N124: TRUE
A125: Commercial | B125: 2 | F125: 0 | M125: 0 | N125: TRUE
A126: Industrial | B126: 4 | F126: 0 | M126: 0 | N126: TRUE
A127: Lighting | B127: 15 | F127: 0 | M127: 0 | N127: TRUE
A128: OPA | B128: 16 | F128: 0 | M128: 0 | N128: TRUE
A129: Residential | B129: 0 | F129: 0 | M129: 0 | N129: TRUE
A130: Commercial | B130: 2 | F130: 0 | M130: 0 | N130: TRUE
A131: Industrial | B131: 4 | F131: 0 | M131: 0 | N131: TRUE
A132: Lighting | B132: 15 | F132: 0 | M132: 0 | N132: =E132=M132 -> TRUE
A133: OPA | B133: 16 | F133: 0 | M133: =SUM(G133:L133) -> 0 | N133: TRUE
A134: Residential | B134: 0 | F134: =D134+E134 -> 0 | M134: 0 | N134: TRUE
A135: Commercial | B135: 2 | F135: 0 | M135: 0 | N135: TRUE
A136: Industrial | B136: 4 | F136: 0 | M136: 0 | N136: TRUE
A137: Lighting | B137: 15 | F137: 0 | M137: 0 | N137: TRUE
A138: OPA | B138: 16 | F138: 0 | M138: 0 | N138: TRUE
A139: Residential | B139: 0 | F139: 0 | M139: 0 | N139: TRUE
A140: Commercial | B140: 2 | F140: 0 | M140: 0 | N140: TRUE
A141: Industrial | B141: 4 | F141: 0 | M141: 0 | N141: TRUE
A142: Lighting | B142: 15 | F142: 0 | M142: 0 | N142: TRUE
A143: OPA | B143: 16 | F143: 0 | M143: 0 | N143: TRUE
A144: Residential | B144: 0 | F144: 0 | M144: 0 | N144: TRUE
A145: Commercial | B145: 2 | F145: 0 | M145: 0 | N145: TRUE
A146: Industrial | B146: 4 | F146: 0 | M146: 0 | N146: TRUE
A147: Lighting | B147: 15 | F147: 0 | M147: 0 | N147: TRUE
A148: OPA | B148: 16 | F148: 0 | M148: 0 | N148: TRUE
A149: Residential | B149: 0 | F149: 0 | M149: 0 | N149: TRUE
A150: Commercial | B150: 2 | F150: 0 | M150: 0 | N150: TRUE
A151: Industrial | B151: 4 | F151: 0 | M151: 0 | N151: TRUE
A152: Lighting | B152: 15 | F152: 0 | M152: 0 | N152: TRUE
A153: OPA | B153: 16 | F153: 0 | M153: 0 | N153: TRUE
A154: Residential | B154: 0 | F154: 0 | M154: 0 | N154: TRUE
A155: Commercial | B155: 2 | F155: 0 | M155: 0 | N155: TRUE
A156: Industrial | B156: 4 | F156: 0 | M156: 0 | N156: TRUE
A157: Lighting | B157: 15 | F157: 0 | M157: 0 | N157: TRUE
A158: OPA | B158: 16 | F158: 0 | M158: 0 | N158: TRUE
A159: Residential | B159: 0 | F159: 0 | M159: 0 | N159: TRUE
A160: Commercial | B160: 2 | F160: 0 | M160: 0 | N160: TRUE
A161: Industrial | B161: 4 | F161: 0 | M161: 0 | N161: TRUE
A162: Lighting | B162: 15 | F162: 0 | M162: 0 | N162: TRUE
A163: OPA | B163: 16 | F163: 0 | M163: 0 | N163: TRUE
A164: Residential | B164: 0 | F164: 0 | M164: 0 | N164: TRUE
A165: Commercial | B165: 2 | F165: 0 | M165: 0 | N165: TRUE
A166: Industrial | B166: 4 | F166: 0 | M166: 0 | N166: TRUE
A167: Lighting | B167: 15 | F167: 0 | M167: 0 | N167: TRUE
A168: OPA | B168: 16 | F168: 0 | M168: 0 | N168: TRUE
A169: Residential | B169: 0 | F169: 0 | M169: 0 | N169: TRUE
A170: Commercial | B170: 2 | F170: 0 | M170: 0 | N170: TRUE
A171: Industrial | B171: 4 | F171: 0 | M171: 0 | N171: TRUE
A172: Lighting | B172: 15 | F172: 0 | M172: 0 | N172: TRUE
A173: OPA | B173: 16 | F173: 0 | M173: 0 | N173: TRUE
A174: Residential | B174: 0 | F174: 0 | M174: 0 | N174: TRUE
A175: Commercial | B175: 2 | F175: 0 | M175: 0 | N175: TRUE
A176: Industrial | B176: 4 | F176: 0 | M176: 0 | N176: TRUE
A177: Lighting | B177: 15 | F177: 0 | M177: 0 | N177: TRUE
A178: OPA | B178: 16 | F178: 0 | M178: 0 | N178: TRUE
A179: Residential | B179: 0 | F179: 0 | M179: 0 | N179: TRUE
A180: Commercial | B180: 2 | F180: 0 | M180: 0 | N180: TRUE
A181: Industrial | B181: 4 | F181: 0 | M181: 0 | N181: TRUE
A182: Lighting | B182: 15 | F182: 0 | M182: 0 | N182: TRUE
A183: OPA | B183: 16 | F183: 0 | M183: 0 | N183: TRUE
A184: Residential | B184: 0 | F184: 0 | M184: 0 | N184: TRUE
A185: Commercial | B185: 2 | F185: 0 | M185: 0 | N185: TRUE
A186: Industrial | B186: 4 | F186: 0 | M186: 0 | N186: TRUE
A187: Lighting | B187: 15 | F187: 0 | M187: 0 | N187: TRUE
A188: OPA | B188: 16 | F188: 0 | M188: 0 | N188: TRUE
A189: Residential | B189: 0 | F189: 0 | M189: 0 | N189: TRUE
A190: Commercial | B190: 2 | F190: 0 | M190: 0 | N190: TRUE
A191: Industrial | B191: 4 | F191: 0 | M191: 0 | N191: TRUE
A192: Lighting | B192: 15 | F192: 0 | M192: 0 | N192: TRUE
A193: OPA | B193: 16 | F193: 0 | M193: 0 | N193: TRUE
A194: Residential | B194: 0 | F194: 0 | M194: 0 | N194: TRUE
A195: Commercial | B195: 2 | F195: 0 | M195: 0 | N195: TRUE
A196: Industrial | B196: 4 | F196: 0 | M196: 0 | N196: =E196=M196 -> TRUE
A197: Lighting | B197: 15 | F197: 0 | M197: =SUM(G197:L197) -> 0 | N197: TRUE
A198: OPA | B198: 16 | F198: =D198+E198 -> 0 | M198: 0 | N198: TRUE
A199: Residential | B199: 0 | F199: 0 | M199: 0 | N199: TRUE
A200: Commercial | B200: 2 | F200: 0 | M200: 0 | N200: TRUE
... 1083 more rows

Sheet Sales for Resale
A1: Source: PSM Schedule 2
A2: Asset Energy = Non-native portion of DA Asset Energy (PJM BLI 1200, 1210, 1220) and RT Asset Energy (PJM BLI 1205, 1215, 1225, 1400, 1410, 1420)
A4: Bill | C4: 12 Month
A5: Period | B5: Amount | C5: Average | F5: PSM
A6: 2017-05-01 | B6: 1173611.46 | F6: 1173611.46 | G6: =F6-B6 -> 0
A7: 2017-06-01 | B7: 593771.89 | F7: 593771.89 | G7: =F7-B7 -> 0
A8: 2017-07-01 | B8: 415058.79 | F8: 415058.79 | G8: 0
A9: 2017-08-01 | B9: 447589.45 | F9: 447589.45 | G9: 0
A10: 2017-09-01 | B10: 1077979.15 | F10: 1077979.15 | G10: 0
A11: 2017-10-01 | B11: 2400518.78 | F11: 2400518.78 | G11: 0
A12: 2017-11-01 | B12: 1648921.22 | F12: 1648921.22 | G12: 0
A13: 2017-12-01 | B13: 647230.19 | F13: 647230.19 | G13: 0
A14: 2018-01-01 | B14: 1989969.08 | F14: 1989969.08 | G14: 0
A15: 2018-02-01 | B15: 220839.74 | F15: 220839.74 | G15: 0
A16: 2018-03-01 | B16: 58321.9 | F16: 58321.9 | G16: 0
A17: 2018-04-01 | B17: 592.38 | C17: =ROUND(AVERAGE(B6:B17),0) -> 889534 | F17: 592.38 | G17: 0
A18: 2018-05-01 | B18: 0 | C18: =ROUND(AVERAGE(B7:B18),0) -> 791733 | F18: 0 | G18: 0
A19: 2018-06-01 | B19: 567725.6 | C19: 789562 | F19: 567725.6 | G19: 0
A20: 2018-07-01 | B20: 1617776.12 | C20: 889789 | F20: 1617776.12 | G20: 0
A21: 2018-08-01 | B21: 459147.96 | C21: 890752 | F21: 459147.96 | G21: 0
A22: 2018-09-01 | C22: 873731 | G22: 0
A23: 2018-10-01 | C23: 721052 | G23: 0
A24: 2018-11-01 | C24: 617956 | G24: 0
A25: 2018-12-01 | C25: 614297 | G25: 0
A26: 2019-01-01 | C26: 417772 | G26: 0
A27: 2019-02-01 | C27: 450594 | G27: 0
A28: 2019-03-01 | C28: 529048 | G28: 0
A29: 2019-04-01 | C29: 661162 | G29: 0
A30: 2019-05-01 | C30: 881550 | G30: 0
A31: 2019-06-01 | C31: 1038462 | G31: 0
A32: 2019-07-01 | C32: 459148 | G32: 0
A33: 2019-08-01 | G33: 0
A34: 2019-09-01 | G34: 0
A35: 2019-10-01 | G35: 0
A36: 2019-11-01 | G36: 0
A37: 2019-12-01 | G37: 0
A38: 2020-01-01 | G38: 0
A39: 2020-02-01 | G39: 0
A40: 2020-03-01 | G40: 0
A41: 2020-04-01 | G41: 0
A42: 2020-05-01 | G42: 0
A43: 2020-06-01 | G43: 0
A44: 2020-07-01 | G44: 0
A45: 2020-08-01 | G45: 0
A46: 2020-09-01 | G46: 0
A47: 2020-10-01 | G47: 0
A48: 2020-11-01 | G48: 0
A49: 2020-12-01 | G49: 0
A50: 2021-01-01 | G50: 0
A51: 2021-02-01 | G51: 0
A52: 2021-03-01 | G52: 0
A53: 2021-04-01 | G53: 0
A54: 2021-05-01 | G54: 0
A55: 2021-06-01 | G55: 0
A56: 2021-07-01 | G56: 0
A57: 2021-08-01 | G57: 0
A58: 2021-09-01 | G58: 0
A59: 2021-10-01 | G59: 0
A60: 2021-11-01 | G60: 0
A61: 2021-12-01 | G61: 0
A62: 2022-01-01 | G62: 0
A63: 2022-02-01 | G63: 0
A64: 2022-03-01 | G64: 0
A65: 2022-04-01 | G65: 0
A66: 2022-05-01 | G66: 0
A67: 2022-06-01 | G67: 0
A68: 2022-07-01 | G68: 0
A69: 2022-08-01 | G69: 0
A70: 2022-09-01 | G70: 0
A71: 2022-10-01 | G71: =F71-B71 -> 0
A72: 2022-11-01 | G72: 0
A73: 2022-12-01 | G73: 0
A74: 2023-01-01 | G74: 0
A75: 2023-02-01 | G75: 0
A76: 2023-03-01 | G76: 0
A77: 2023-04-01 | G77: 0
A78: 2023-05-01 | G78: 0
A79: 2023-06-01 | G79: 0
A80: 2023-07-01 | G80: 0
A81: 2023-08-01 | G81: 0
A82: 2023-09-01 | C82: =ROUND(AVERAGE(B71:B82),0) ->  | G82: 0
A83: 2023-10-01 | G83: 0
A84: 2023-11-01 | G84: 0
A85: 2023-12-01 | G85: 0
A86: 2024-01-01 | G86: 0
A87: 2024-02-01 | G87: 0
A88: 2024-03-01 | G88: 0
A89: 2024-04-01 | G89: 0
A90: 2024-05-01 | G90: 0
A91: 2024-06-01 | G91: 0
A92: 2024-07-01 | G92: 0
A93: 2024-08-01 | G93: 0
A94: 2024-09-01 | G94: 0
A95: 2024-10-01 | G95: 0
A96: 2024-11-01 | G96: 0
A97: 2024-12-01 | G97: 0
G98: 0
G99: 0
G100: 0
G101: 0
G102: 0
G103: 0
G104: 0
G105: 0
G106: 0
G107: 0
G108: 0
G109: 0
G110: 0
G111: 0
G112: 0
G113: 0
G114: 0
G115: 0
G116: 0
G117: 0
G118: 0
G119: 0
G120: 0
G121: 0
G122: 0
G123: 0
G124: 0
G125: 0
G126: 0
G127: 0
G128: 0
G129: 0
G130: 0
G131: 0
G132: 0
G133: 0
G134: 0
G135: =F135-B135 -> 0
G136: 0
G137: 0
G138: 0
G139: 0
G140: 0
G141: 0
G142: 0
G143: 0
G144: 0
G145: 0
C146: =ROUND(AVERAGE(B135:B146),0) ->  | G146: 0
G147: 0
G148: 0
G149: 0
G150: 0
G151: 0
G152: 0
G153: 0
G154: 0
G155: 0
G156: 0
G157: 0
G158: 0
G159: 0
G160: 0
G161: 0
G162: 0
G163: 0
G164: 0
G165: 0
G166: 0
G167: 0
G168: 0
G169: 0
G170: 0
G171: 0
G172: 0
G173: 0
G174: 0
G175: 0
G176: 0
G177: 0
G178: 0
G179: 0
G180: 0
G181: 0
G182: 0
G183: 0
G184: 0
G185: 0
G186: 0
G187: 0
G188: 0
G189: 0
G190: 0
G191: 0
G192: 0
G193: 0
G194: 0
G195: 0
G196: 0
G197: 0
G198: 0
G199: =F199-B199 -> 0
G200: 0
G201: 0
... 127 more rows
